Workbook

Sheet 4 вариант 15.02 (hidden)
A1: IV. Реестр многоквартирных домов, которые подлежат капитальному ремонту в 2018 году, с учетом мер государственной поддержки
A2: № п\п | B2: Адрес МКД | C2: Стоимость капитального ремонта ВСЕГО | D2: Виды работ
D3: Ремонт внутридомовых инженерных систем | J3: Ремонт или замена лифтового оборудования | L3: Ремонт крыши | N3: Ремонт подвальных помещений | P3: Ремонт фасада | R3: Ремонт фундамента | T3: Ремонт подъездов | V3: Утепление фасадов | X3: Установка коллектив-ных (общедо-мовых) ПУ и УУ | Y3: Проект-ные работы | Z3: Работы по предпроектной подготовке
D4: Всего работ по инженерным системам | E4: в том числе
E5: Ремонт сетей электроснабжения | F5: Ремонт сетей теплоснабжения | G5: Ремонт сетей холодного водоснабжения | H5: Ремонт сетей горячего водоснабжения | I5: Ремонт систем водоотведения
C6: руб. | D6: руб. | E6: руб. | F6: руб. | G6: руб. | H6: руб. | I6: руб. | J6: ед. | K6: руб. | L6: кв.м. | M6: руб. | N6: кв.м. | O6: руб. | P6: кв.м. | Q6: руб. | R6: куб.м. | S6: руб. | T6: куб.м. | U6: руб. | V6: кв.м. | W6: руб. | X6: руб. | Y6: руб. | Z6: руб.
A7: 1 | B7: 2 | C7: 3 | D7: 4 | E7: 5 | F7: 6 | G7: 7 | H7: 8 | I7: 9 | J7: 10 | K7: 11 | L7: 12 | M7: 13 | N7: 14 | O7: 15 | P7: 16 | Q7: 17 | R7: 18 | S7: 19 | T7: 20 | U7: 21 | V7: 22 | W7: 23 | X7: 24 | Y7: 25 | Z7: 24
A8: Объекты культурного наследия по г. Выборгу
A9: Муниципальное образование "Город Выборг"
A10: 1 | B10: г. Выборг, просп. Ленина, д. 6 | C10: =M10+Q10 -> 49775695.93 | D10: =E10+F10+G10+H10+I10 -> 0 | L10: 998 | M10: 10968656.84 | P10: 3425 | Q10: 38807039.09
A11: =A10+1 -> 2 | B11: г. Выборг, ул. Железнодорожная, д. 2 | C11: =M11+Q11 -> 71246479.39 | D11: 0 | L11: 2373 | M11: 27524999 | P11: 5336 | Q11: 43721480.39
A12: =A11+1 -> 3 | B12: г. Выборг, ул. Железнодорожная, д. 4 | C12: 32678707.01 | D12: 0 | L12: 872 | M12: 11984761.14 | P12: 2144 | Q12: 20693945.87
A13: 4 | B13: г. Выборг, ул. Крепостная, д. 37 | C13: 35893316.08 | D13: 0 | P13: 3816 | Q13: 35893316.08
A14: 5 | B14: г. Выборг, просп. Ленина, д. 20 | C14: 41972672.83 | D14: 0 | L14: 1343 | M14: 15061442.03 | P14: 3979 | Q14: 26911230.8
A15: 6 | B15: г. Выборг, просп. Ленина, д. 18 | C15: 59578132.51 | D15: 0 | L15: 2045 | M15: 24228789.09 | P15: 6152 | Q15: 35349343.42
A16: 7 | B16: г. Выборг, просп. Суворова, д. 25 | C16: 45928527.66 | D16: 0 | L16: 844 | M16: 10966897.22 | P16: 2501 | Q16: 34961630.44
A17: 8 | B17: г. Выборг, ул. Северная, д. 8 | C17: 51170285.81 | D17: 0 | P17: 6460 | Q17: 51170285.81
A18: 9 | B18: г. Выборг, ул. Северная, д. 10 | C18: 60495179.12 | D18: 0 | P18: 4160 | Q18: 60495179.12
A19: 10 | B19: г. Выборг, Ленинградский пр., д. 14 | C19: 26008913.35 | D19: 0 | L19: 540 | M19: 7099248.06 | P19: 2623 | Q19: 18909665.29
A20: 11 | B20: г. Выборг, Ленинградский пр., д. 16 | C20: 26073352.2 | D20: 0 | L20: 760 | M20: 8877863.95 | P20: 1116 | Q20: 17195488.25
A21: 12 | B21: г. Выборг, Ленинградский пр., д. 31 | C21: 64195351.77 | D21: 0 | L21: 1598 | M21: 15544550 | P21: 5534 | Q21: 48650801.77
A22: 13 | B22: г. Выборг, Ленинградское ш., д. 1 | C22: 96318597.45 | D22: 0 | L22: 2280 | M22: 22581195.35 | P22: 6423 | Q22: 73737402.1
A23: Итого по муниципальному образованию | C23: =SUM(C10:C22) -> 661335211.1 | D23: =SUM(D10:D22) -> 0 | E23: 0 | F23: 0 | G23: 0 | H23: 0 | I23: 0 | J23: 0 | K23: 0 | L23: 13653 | M23: =SUM(M10:M22) -> 154838402.7 | N23: 0 | O23: 0 | P23: 53669 | Q23: 506496808.4 | R23: 0 | S23: 0 | T23: 0 | U23: 0 | V23: 0 | W23: 0 | X23: 0 | Y23: 0
A24: ИТОГО по Ленинградской области | C24: =C23 -> 661335211.1 | D24: =D23 -> 0 | E24: 0 | F24: 0 | G24: 0 | H24: 0 | I24: 0 | J24: 0 | K24: 0 | L24: 13653 | M24: 154838402.7 | N24: 0 | O24: 0 | P24: 53669 | Q24: 506496808.4 | R24: 0 | S24: 0 | T24: 0 | U24: 0 | V24: 0 | W24: 0 | X24: 0 | Y24: 0
A25: Осуществление строительного контроля | C25: =C24*0.0214 -> 14152573.52
A26: Итого по Ленинградской области со строительным контролем | C26: =C24+C25 -> 675487784.6
Z42: =SUM(Z24:Z41) -> 0
Z47: =SUM(Z44:Z46) -> 0
Z48: =Z42+#REF!+Z47+#REF! -> 
Z100: =SUM(Z87:Z99) -> 0
Z123: =SUM(Z105:Z122) -> 0
Z134: =SUM(Z128:Z133) -> 0
Z142: =SUM(Z136:Z141) -> 0
Z148: =SUM(Z144:Z146) -> 0
Z149: =Z100+Z123+Z134+Z148+Z142+Z126 -> 0
Z156: =SUM(Z152:Z155) -> 0
Z220: =SUM(Z161:Z219) -> 0
Z227: =SUM(Z226) -> 0
Z234: =Z156+Z220+Z227 -> 0
Z249: =SUM(Z237:Z248) -> 0
Z254: =SUM(Z251:Z253) -> 0
Z255: =Z249+Z254 -> 0
Z285: =SUM(Z258:Z284) -> 0
Z290: =SUM(Z287:Z289) -> 0
Z294: =SUM(Z292:Z293) -> 0
Z295: =Z285+Z294+Z290 -> 0
Z322: =SUM(Z298:Z321) -> 0
Z339: =SUM(Z324:Z338) -> 0
Z346: =SUM(Z341:Z345) -> 0
Z349: =SUM(Z348:Z348) -> 0
Z357: =SUM(Z351:Z356) -> 0
Z365: =SUM(Z359:Z364) -> 0
Z366: =E366+F366+G366+H366+I366+K366+M366+O366+Q366+S366+U366+V366+W366+X366 -> 0
Z367: =E367+F367+G367+H367+I367+K367+M367+O367+Q367+S367+U367+V367+W367+X367 -> 0
Z368: =E368+F368+G368+H368+I368+K368+M368+O368+Q368+S368+U368+V368+W368+X368 -> 0
Z369: =E369+F369+G369+H369+I369+K369+M369+O369+Q369+S369+U369+V369+W369+X369 -> 0
Z370: =E370+F370+G370+H370+I370+K370+M370+O370+Q370+S370+U370+V370+W370+X370 -> 0
Z396: =SUM(Z372:Z395) -> 0
Z397: =SUM(Z396+Z365+Z357+Z349+Z346+Z339+Z322) -> 0
Z433: =SUM(Z400:Z432) -> 0
Z434: =Z433 -> 0
Z443: =SUM(Z437:Z440) -> 0
Z446: =SUM(Z445:Z445) -> 0
Z451: =SUM(Z448:Z450) -> 0
Z457: =SUM(Z453:Z456) -> 0
Z463: =SUM(Z459:Z462) -> 0
Z467: =SUM(Z465:Z466) -> 0
Z473: =SUM(Z469:Z472) -> 0
Z474: =Z451+Z443+Z446+Z473+Z467+Z457+Z463 -> 0
Z479: =SUM(Z477:Z478) -> 0
Z502: =SUM(Z493:Z501) -> 0
Z506: =SUM(Z504:Z505) -> 0
Z509: =SUM(Z508:Z508) -> 0
Z518: =SUM(Z511:Z517) -> 0
Z526: =SUM(Z520:Z525) -> 0
Z529: =SUM(Z528:Z528) -> 0
Z532: =SUM(Z531) -> 0
Z539: =Z479+Z502+Z506+Z509+Z518+Z526+Z529+Z532+Z538 -> 0
Z550: =SUM(Z542:Z549) -> 0
Z551: =Z550 -> 0
Z559: =SUM(Z554:Z558) -> 0
Z565: =SUM(Z561:Z564) -> 0
Z570: =SUM(Z567:Z569) -> 0
Z576: =SUM(Z572:Z575) -> 0
Z580: =SUM(Z578:Z579) -> 0
Z588: =Z586+Z587 -> 0
Z589: =Z559+Z565+Z570+Z576+Z580 -> 0
Z593: =SUM(Z592:Z592) -> 0
Z596: =SUM(Z595) -> 0
Z634: =SUM(Z598:Z633) -> 0
Z635: =Z634+Z596+Z593 -> 0
Z756: =SUM(Z637:Z755) -> 0
Z868: =SUM(Z764:Z867) -> 0
Z888: =SUM(Z870:Z887) -> 0
Z889: =Z868+Z888 -> 0
Z893: =SUM(Z892:Z892) -> 0
Z901: =SUM(Z895:Z900) -> 0
Z904: =SUM(Z903:Z903) -> 0
Z924: =SUM(Z906:Z923) -> 0
Z927: =SUM(Z926:Z926) -> 0
Z930: =SUM(Z929) -> 0
Z931: =Z901+Z904+Z927+Z924+Z893+Z930 -> 0
Y933: =#REF!-#REF! -> 
Y934: =#REF!-Y933 -> 
Y936: 80325165.22
Y937: =Y933-Y936 -> 

Sheet Итого Раздел I
M1: Приложение 1
M2: к постановлению Правительства Ленинградской области
M3: от "30" апреля 2021г. №253
A10: Краткосрочный план реализации в 2020-2022 годах Региональной программы капитального ремонта общего имущества в многоквартирных домах, расположенных на территории Ленинградской области
A11: Раздел I. Перечень многоквартирных домов, в которых будет проводиться капитальный ремонт лифтового оборудования в 2020-2022 годах, за счет средств собственников, формирующих фонд капитального ремонта на счетах регионального оператора
A12: № п\п | B12: Адрес МКД | C12: Год | E12: Материал стен | F12: Количество этажей | G12: Количество лифтов | H12: Количество подъездов | I12: общая площадь МКД, всего | J12: Площадь помещений МКД: | L12: Количество жителей, зарегистрированных в МКД | M12: Стоимость капитального ремонта за счет средств собственников помещений в МКД | N12: Плановая дата завершения работ | O12: способ формирования фонда капитального ремонта
C13: ввода в эксплуатацию | D13: завершение последнего капитального ремонта | J13: всего: | K13: в том числе жилых помещений, находящихся в собственности граждан
I15: кв.м | J15: кв.м | K15: кв.м | L15: чел.
A16: 1 | B16: 2 | C16: 3 | D16: 4 | E16: 5 | F16: 6 | G16: 7 | H16: 8 | I16: 9 | J16: 10 | K16: 11 | L16: 12 | M16: 13 | N16: 14 | O16: 15 | P16: 20 | Q16: 21 | R16: 22 | S16: 23 | T16: 24 | U16: 25
A17: Волховский муниципальный район
A18: Муниципальное образование Город Волхов
A19: 1 | B19: Г. Волхов, просп. Волховский, д. 57 | C19: 1994 | E19: кирпич | F19: 9 | G19: 1 | H19: 1 | I19: 3238.7 | J19: 2407 | K19: 2047 | L19: 111 | M19: =SUMIF('2020 Раздел 2'!B:B,B19,'2020 Раздел 2'!C:C)+SUMIF('2021 Раздел 3'!B:B,B19,'2021 Раздел 3'!C:C)+SUMIF('2022 Раздел 4'!B:B,B19,'2022 Раздел 4'!C:C) -> 2735709.46 | N19: 2022-12-30 | O19: РО
A20: Итого по муниципальному образованию | C20: х | D20: х | E20: х | F20: х | G20: =SUM(G19) -> 1 | H20: х | I20: =SUM(I19) -> 3238.7 | J20: =SUM(J19) -> 2407 | K20: 2047 | L20: 111 | M20: =M19 -> 2735709.46 | N20: х | O20: х
A21: Итого по Волховскому муниципальному району | C21: х | D21: х | E21: х | F21: х | G21: =SUM(G20) -> 1 | H21: х | I21: =SUM(I20) -> 3238.7 | J21: 2407 | K21: 2047 | L21: 111 | M21: 2735709.46 | N21: х | O21: х | P21: =M21-'2021 Раздел 3'!C9-'2022 Раздел 4'!C10 -> 0
A22: Всеволожский муниципальный район
A23: Муниципальное образование Город Всеволожск
A24: =A19+1 -> 2 | B24: Г. Всеволожск, ул. Александровская, д. 81, корп. 3 | C24: 1996 | F24: 8 | G24: 2 | H24: 2 | I24: 4215.1 | J24: 4215.1 | K24: 2782 | L24: 170 | M24: =SUMIF('2020 Раздел 2'!B:B,B24,'2020 Раздел 2'!C:C)+SUMIF('2021 Раздел 3'!B:B,B24,'2021 Раздел 3'!C:C)+SUMIF('2022 Раздел 4'!B:B,B24,'2022 Раздел 4'!C:C) -> 5276630.92 | N24: 2022-12-30 | O24: РО
A25: =A24+1 -> 3 | B25: Г. Всеволожск, ул. Балашова, д. 8/3 | C25: 1995 | F25: 9 | G25: 2 | H25: 2 | I25: 4768.2 | J25: 4768.2 | K25: 2407 | L25: 154 | M25: =SUMIF('2020 Раздел 2'!B:B,B25,'2020 Раздел 2'!C:C)+SUMIF('2021 Раздел 3'!B:B,B25,'2021 Раздел 3'!C:C)+SUMIF('2022 Раздел 4'!B:B,B25,'2022 Раздел 4'!C:C) -> 5276630.92 | N25: 2022-12-30 | O25: РО
A26: 4 | B26: Г. Всеволожск, ул. Василеозерская, д. 5 | C26: 1995 | F26: 10 | G26: 2 | H26: 2 | I26: 5400.9 | J26: 5400.9 | K26: 2392 | L26: 141 | M26: =SUMIF('2020 Раздел 2'!B:B,B26,'2020 Раздел 2'!C:C)+SUMIF('2021 Раздел 3'!B:B,B26,'2021 Раздел 3'!C:C)+SUMIF('2022 Раздел 4'!B:B,B26,'2022 Раздел 4'!C:C) -> 5276630.92 | N26: 2022-12-30 | O26: РО
A27: 5 | B27: Г. Всеволожск, ул. Василеозерская, д. 7 | C27: 1996 | F27: 10 | G27: 2 | H27: 2 | I27: 5786.9 | J27: 5786.9 | K27: 3645 | L27: 205 | M27: =SUMIF('2020 Раздел 2'!B:B,B27,'2020 Раздел 2'!C:C)+SUMIF('2021 Раздел 3'!B:B,B27,'2021 Раздел 3'!C:C)+SUMIF('2022 Раздел 4'!B:B,B27,'2022 Раздел 4'!C:C) -> 5471418.92 | N27: 2022-12-30 | O27: РО
A28: 6 | B28: Г. Всеволожск, ул. Ленинградская, д. 24/84 | C28: 1994 | F28: 10 | G28: 5 | H28: 5 | I28: 13448.5 | J28: 13448.5 | K28: 3707.4 | L28: 199.7 | M28: =SUMIF('2020 Раздел 2'!B:B,B28,'2020 Раздел 2'!C:C)+SUMIF('2021 Раздел 3'!B:B,B28,'2021 Раздел 3'!C:C)+SUMIF('2022 Раздел 4'!B:B,B28,'2022 Раздел 4'!C:C) -> 12601362 | N28: 2022-12-30 | O28: РО
A29: 7 | B29: Г. Всеволожск, ул. Ленинградская, д. 30, корп. 1 | C29: 1993 | F29: 9 | G29: 1 | H29: 3 | I29: 6885.1 | J29: 6885.1 | K29: 3964.8 | L29: 208.9 | M29: =SUMIF('2020 Раздел 2'!B:B,B29,'2020 Раздел 2'!C:C)+SUMIF('2021 Раздел 3'!B:B,B29,'2021 Раздел 3'!C:C)+SUMIF('2022 Раздел 4'!B:B,B29,'2022 Раздел 4'!C:C) -> 2735709.46 | N29: 2022-12-30 | O29: РО
A30: Итого по муниципальному образованию | C30: x | D30: x | E30: x | F30: x | G30: =SUM(G24:G29) -> 14 | H30: x | I30: =SUM(I24:I29) -> 40504.7 | J30: =SUM(J24:J29) -> 40504.7 | K30: =SUM(K24:K29) -> 18898.2 | L30: =SUM(L24:L29) -> 1078.6 | M30: =SUM(M24:M29) -> 36638383.14 | N30: x | O30: x | P30: =M30-'2020 Раздел 2'!C11-'2021 Раздел 3'!C18-'2022 Раздел 4'!C15 -> 0 | Q30: =#REF!-'2020 Раздел 2'!C11-'2021 Раздел 3'!C18-'2022 Раздел 4'!C15 -> 
A31: Муниципальное образование Муринское городское поселение
A32: =A29+1 -> 8 | B32: г. Мурино, ул. Оборонная, д. 12 | C32: 1992 | E32: кирпич | F32: 9 | G32: 2 | H32: 2 | I32: 5334 | J32: 4507 | K32: 2782 | L32: 170 | M32: =SUMIF('2020 Раздел 2'!B:B,B32,'2020 Раздел 2'!C:C)+SUMIF('2021 Раздел 3'!B:B,B32,'2021 Раздел 3'!C:C)+SUMIF('2022 Раздел 4'!B:B,B32,'2022 Раздел 4'!C:C) -> 5276630.92 | N32: 2022-12-30 | O32: РО
A33: =A32+1 -> 9 | B33: г. Мурино, ул. Оборонная, д. 22 | C33: 1993 | E33: Ж/б панели | F33: 10 | G33: 1 | H33: 2 | I33: 5436 | J33: 4484 | K33: 2392 | L33: 141 | M33: =SUMIF('2020 Раздел 2'!B:B,B33,'2020 Раздел 2'!C:C)+SUMIF('2021 Раздел 3'!B:B,B33,'2021 Раздел 3'!C:C)+SUMIF('2022 Раздел 4'!B:B,B33,'2022 Раздел 4'!C:C) -> 2638315.46 | N33: 2022-12-30 | O33: РО | Q33: =#REF!-'2020 Раздел 2'!C16-'2021 Раздел 3'!C23 -> 
A34: =A33+1 -> 10 | B34: г. Мурино, ул. Оборонная, д. 24 | C34: 1994 | E34: Ж/б панели | F34: 10 | G34: 3 | H34: 3 | I34: 8215 | J34: 6784 | K34: 3645 | L34: 205 | M34: =SUMIF('2020 Раздел 2'!B:B,B34,'2020 Раздел 2'!C:C)+SUMIF('2021 Раздел 3'!B:B,B34,'2021 Раздел 3'!C:C)+SUMIF('2022 Раздел 4'!B:B,B34,'2022 Раздел 4'!C:C) -> 7914946.38 | N34: 2022-12-30 | O34: РО
A35: Итого по муниципальному образованию | C35: x | D35: x | E35: x | F35: x | G35: =SUM(G32:G34) -> 6 | H35: x | I35: 18985 | J35: 15775 | K35: 8819 | L35: 516 | M35: =SUM(M32:M34) -> 15829892.76 | N35: x | O35: x | P35: =M35-'2020 Раздел 2'!C16-'2021 Раздел 3'!C23 -> 0
A36: Муниципальное образование Свердловское городское поселение
A37: =A34+1 -> 11 | B37: Пос. им. Свердлова, микрорайон 1, д. 8 | C37: 1994 | E37: Ж/б панели | F37: 9 | G37: 4 | H37: 4 | I37: 8231.7 | J37: 8202.3 | K37: 8132.9 | L37: 273 | M37: =SUMIF('2020 Раздел 2'!B:B,B37,'2020 Раздел 2'!C:C)+SUMIF('2021 Раздел 3'!B:B,B37,'2021 Раздел 3'!C:C)+SUMIF('2022 Раздел 4'!B:B,B37,'2022 Раздел 4'!C:C) -> 10553261.84 | N37: 2022-12-30 | O37: РО
A38: Итого по муниципальному образованию | C38: x | D38: x | E38: x | F38: x | G38: =G37 -> 4 | H38: =SUM(H37) -> 4 | I38: =SUM(I37) -> 8231.7 | J38: =SUM(J37) -> 8202.3 | K38: =SUM(K37) -> 8132.9 | L38: =SUM(L37) -> 273 | M38: =M37 -> 10553261.84 | N38: x | O38: x
A39: Муниципальное образование Сертолово
A40: =A37+1 -> 12 | B40: г.Сертолово, микрорайон Сертолово-1, ул.Ветеранов,д.11,корп.1 | C40: 1998 | E40: панельный | F40: 9 | G40: 3 | H40: 3 | I40: 6816.5 | J40: 6088.2 | K40: 5657.15 | L40: 216 | M40: =SUMIF('2020 Раздел 2'!B:B,B40,'2020 Раздел 2'!C:C)+SUMIF('2021 Раздел 3'!B:B,B40,'2021 Раздел 3'!C:C)+SUMIF('2022 Раздел 4'!B:B,B40,'2022 Раздел 4'!C:C) -> 7907242.86 | N40: 2022-12-30 | O40: РО
A41: =A40+1 -> 13 | B41: г.Сертолово, микрорайон Сертолово-1, ул. Ветеранов, д. № 11 корп. 2 | C41: 1994 | E41: Ж/б панели | F41: 10 | G41: 3 | H41: 3 | I41: 7576.8 | J41: 7560.2 | K41: 6724.1 | L41: 312 | M41: =SUMIF('2020 Раздел 2'!B:B,B41,'2020 Раздел 2'!C:C)+SUMIF('2021 Раздел 3'!B:B,B41,'2021 Раздел 3'!C:C)+SUMIF('2022 Раздел 4'!B:B,B41,'2022 Раздел 4'!C:C) -> 7907242.86 | N41: 2022-12-30 | O41: РО
A42: =A41+1 -> 14 | B42: Г. Сертолово, микрорайон Сертолово-1, ул. Молодежная, д. 8, корп. 2 | C42: 1993 | E42: панельный | F42: 10 | H42: 3 | I42: 7982.3 | J42: 7092.3 | K42: 7092.3 | L42: 286 | M42: =SUMIF('2020 Раздел 2'!B:B,B42,'2020 Раздел 2'!C:C)+SUMIF('2021 Раздел 3'!B:B,B42,'2021 Раздел 3'!C:C)+SUMIF('2022 Раздел 4'!B:B,B42,'2022 Раздел 4'!C:C) -> 390000 | N42: 2022-12-30 | O42: РО
A43: 15 | B43: г.Сертолово, микрорайон Сертолово-1, ул.Центральная, д. 3 | C43: 1996 | E43: пан | F43: 10 | G43: 3 | H43: 3 | I43: 8340 | J43: 7249.8 | K43: 6747.7 | L43: 347 | M43: =SUMIF('2020 Раздел 2'!B:B,B43,'2020 Раздел 2'!C:C)+SUMIF('2021 Раздел 3'!B:B,B43,'2021 Раздел 3'!C:C)+SUMIF('2022 Раздел 4'!B:B,B43,'2022 Раздел 4'!C:C) -> 8157685.86 | N43: 2022-12-30 | O43: РО
A44: 16 | B44: Г. Сертолово, микрорайон Сертолово-1, ул. Центральная, д. 7, корп. 1 | C44: 1993 | E44: панельный | F44: 10 | G44: 3 | H44: 3 | I44: 7654 | J44: 6803.8 | K44: 6803.8 | L44: 296 | M44: =SUMIF('2020 Раздел 2'!B:B,B44,'2020 Раздел 2'!C:C)+SUMIF('2021 Раздел 3'!B:B,B44,'2021 Раздел 3'!C:C)+SUMIF('2022 Раздел 4'!B:B,B44,'2022 Раздел 4'!C:C) -> 8680076.04 | N44: 2022-12-30 | O44: РО
A45: 17 | B45: Г. Сертолово, микрорайон Сертолово-1, ул. Центральная, д. 6, корп. 1 | C45: 1994 | E45: панельный | F45: 10 | G45: 3 | H45: 3 | I45: 7572 | J45: 6727 | K45: 6727 | L45: 339 | M45: =SUMIF('2020 Раздел 2'!B:B,B45,'2020 Раздел 2'!C:C)+SUMIF('2021 Раздел 3'!B:B,B45,'2021 Раздел 3'!C:C)+SUMIF('2022 Раздел 4'!B:B,B45,'2022 Раздел 4'!C:C) -> 8667924.47 | N45: 2022-12-30 | O45: РО
A46: Итого по муниципальному образованию | C46: x | D46: x | E46: x | F46: x | G46: =SUM(G40:G45) -> 15 | H46: x | I46: =SUM(I40:I45) -> 45941.6 | J46: =SUM(J40:J45) -> 41521.3 | K46: =SUM(K40:K45) -> 39752.05 | L46: =SUM(L40:L45) -> 1796 | M46: =SUM(M40:M45) -> 41710172.09 | N46: x | O46: x
A47: Итого по Всеволожскому муниципальному району | C47: x | D47: x | E47: x | F47: x | G47: =G46+G38+G35+G30 -> 39 | H47: х | I47: =I46+I38+I35+I30 -> 113663 | J47: =J46+J38+J35+J30 -> 106003.3 | K47: =K46+K38+K35+K30 -> 75602.15 | L47: =L46+L38+L35+L30 -> 3663.6 | M47: =M46+M38+M35+M30 -> 104731709.8 | N47: x | O47: x | P47: =M47-'2020 Раздел 2'!C25-'2021 Раздел 3'!C31-'2022 Раздел 4'!C19 -> 0 | Q47: =#REF!-'2020 Раздел 2'!C25-'2021 Раздел 3'!C31-'2022 Раздел 4'!C19 -> 
A48: Выборгский район
A49: Муниципальное образование Город Выборг
A50: =A45+1 -> 18 | B50: Г. Выборг, бул. Кутузова, д. 33 | C50: 1940 | E50: кирпич | F50: 6 | G50: 1 | H50: 3 | I50: 2910.22 | J50: 2910.22 | K50: 2630.54 | L50: 80 | M50: =SUMIF('2020 Раздел 2'!B:B,B50,'2020 Раздел 2'!C:C)+SUMIF('2021 Раздел 3'!B:B,B50,'2021 Раздел 3'!C:C)+SUMIF('2022 Раздел 4'!B:B,B50,'2022 Раздел 4'!C:C) -> 2546289.69 | N50: 2022-12-30 | O50: РО
A51: =A50+1 -> 19 | B51: Г. Выборг, просп. Победы, д. 12 | C51: 1996 | E51: Кер.бет. | F51: 9 | G51: 4 | H51: 4 | I51: 7257.77 | J51: 7257.77 | K51: 6766.67 | L51: 297 | M51: =SUMIF('2020 Раздел 2'!B:B,B51,'2020 Раздел 2'!C:C)+SUMIF('2021 Раздел 3'!B:B,B51,'2021 Раздел 3'!C:C)+SUMIF('2022 Раздел 4'!B:B,B51,'2022 Раздел 4'!C:C) -> 10553261.84 | N51: 2022-12-30 | O51: РО
A52: =A51+1 -> 20 | B52: Г. Выборг, просп. Победы, д. 8 | C52: 1991 | E52: Кер.бет. | F52: 9 | G52: 1 | H52: 1 | I52: 2003.5 | J52: 2003.5 | K52: 2003.5 | L52: 88 | M52: =SUMIF('2020 Раздел 2'!B:B,B52,'2020 Раздел 2'!C:C)+SUMIF('2021 Раздел 3'!B:B,B52,'2021 Раздел 3'!C:C)+SUMIF('2022 Раздел 4'!B:B,B52,'2022 Раздел 4'!C:C) -> 2453855.13 | N52: 2022-12-30 | O52: РО
A53: 21 | B53: Г. Выборг, ул. Гагарина, д. 29 | C53: 1983 | E53: Кер.бет. | F53: 9 | G53: 3 | H53: 3 | I53: 6092.3 | J53: 6092.3 | K53: 5241.8 | L53: 286 | M53: =SUMIF('2020 Раздел 2'!B:B,B53,'2020 Раздел 2'!C:C)+SUMIF('2021 Раздел 3'!B:B,B53,'2021 Раздел 3'!C:C)+SUMIF('2022 Раздел 4'!B:B,B53,'2022 Раздел 4'!C:C) -> 11629909.38 | N53: 2022-12-30 | O53: РО
A54: 22 | B54: Г. Выборг, ул. Гагарина, д. 65 | C54: 1993 | E54: панель | F54: 9 | G54: 1 | H54: 1 | I54: 1989.5 | J54: 1989.5 | K54: 1836.8 | L54: 82 | M54: =SUMIF('2020 Раздел 2'!B:B,B54,'2020 Раздел 2'!C:C)+SUMIF('2021 Раздел 3'!B:B,B54,'2021 Раздел 3'!C:C)+SUMIF('2022 Раздел 4'!B:B,B54,'2022 Раздел 4'!C:C) -> 2453784.56 | N54: 2022-12-30 | O54: РО
A55: 23 | B55: Г. Выборг, ул. Гагарина, д. 69 | C55: 1994 | E55: панель | F55: 9 | G55: 2 | H55: 2 | I55: 4782 | J55: 4782 | K55: 3975.5 | L55: 184 | M55: =SUMIF('2020 Раздел 2'!B:B,B55,'2020 Раздел 2'!C:C)+SUMIF('2021 Раздел 3'!B:B,B55,'2021 Раздел 3'!C:C)+SUMIF('2022 Раздел 4'!B:B,B55,'2022 Раздел 4'!C:C) -> 5471418.92 | N55: 2022-12-30 | O55: РО
A56: 24 | B56: Г. Выборг, ул. Крепостная, д. 39а | C56: 1993 | E56: кирпич | F56: 9 | G56: 1 | H56: 1 | I56: 1886.9 | J56: 1886.9 | K56: 1876 | L56: 42 | M56: =SUMIF('2020 Раздел 2'!B:B,B56,'2020 Раздел 2'!C:C)+SUMIF('2021 Раздел 3'!B:B,B56,'2021 Раздел 3'!C:C)+SUMIF('2022 Раздел 4'!B:B,B56,'2022 Раздел 4'!C:C) -> 3876636.46 | N56: 2022-12-30 | O56: РО
A57: 25 | B57: Г. Выборг, ул. Офицерская, д. 12 | C57: 1993 | E57: Кер.блок | F57: 9 | G57: 1 | H57: 1 | I57: 1561.5 | J57: 1561.5 | K57: 1422.9 | L57: 84 | M57: =SUMIF('2020 Раздел 2'!B:B,B57,'2020 Раздел 2'!C:C)+SUMIF('2021 Раздел 3'!B:B,B57,'2021 Раздел 3'!C:C)+SUMIF('2022 Раздел 4'!B:B,B57,'2022 Раздел 4'!C:C) -> 2499849.44 | N57: 2022-12-30 | O57: РО
A58: 26 | B58: Г. Выборг, ул. Офицерская, д. 14 | C58: 1993 | E58: Кер.блок | F58: 9 | G58: 1 | H58: 1 | I58: 2421.3 | J58: 2421.3 | K58: 2163.8 | L58: 105 | M58: =SUMIF('2020 Раздел 2'!B:B,B58,'2020 Раздел 2'!C:C)+SUMIF('2021 Раздел 3'!B:B,B58,'2021 Раздел 3'!C:C)+SUMIF('2022 Раздел 4'!B:B,B58,'2022 Раздел 4'!C:C) -> 2502256.98 | N58: 2022-12-30 | O58: РО
A59: Итого по муниципальному образованию | C59: x | D59: x | E59: x | F59: x | G59: =SUM(G50:G58) -> 15 | H59: x | I59: =SUM(I50:I58) -> 30904.99 | J59: =SUM(J50:J58) -> 30904.99 | K59: =SUM(K50:K58) -> 27917.51 | L59: =SUM(L50:L58) -> 1248 | M59: =SUM(M50:M58) -> 43987262.4 | N59: x | O59: x | P59: =M59-'2020 Раздел 2'!C36-'2021 Раздел 3'!C36-'2022 Раздел 4'!C23 -> -1.303851604e-08 | Q59: =#REF!-'2020 Раздел 2'!C36-'2021 Раздел 3'!C41-'2022 Раздел 4'!C28 -> 
A60: Муниципальное образование Полянское сельское поселение
A61: =A58+1 -> 27 | B61: пос. Каменка, ул. Гвардейская, д. 75 | C61: 1984 | E61: кирпич | F61: 9 | G61: 1 | H61: 1 | I61: 3416.1 | J61: 3416.1 | K61: 104.8 | L61: 93 | M61: =SUMIF('2020 Раздел 2'!B:B,B61,'2020 Раздел 2'!C:C)+SUMIF('2021 Раздел 3'!B:B,B61,'2021 Раздел 3'!C:C)+SUMIF('2022 Раздел 4'!B:B,B61,'2022 Раздел 4'!C:C) -> 2736190.13 | N61: 2022-12-30 | O61: РО
A62: =A61+1 -> 28 | B62: пос. Каменка, ул. Гвардейская, д. 77 | C62: 1984 | E62: кирпич | F62: 9 | G62: 1 | H62: 1 | I62: 3034.7 | J62: 3034.7 | K62: 89.5 | L62: 79 | M62: =SUMIF('2020 Раздел 2'!B:B,B62,'2020 Раздел 2'!C:C)+SUMIF('2021 Раздел 3'!B:B,B62,'2021 Раздел 3'!C:C)+SUMIF('2022 Раздел 4'!B:B,B62,'2022 Раздел 4'!C:C) -> 2736190.13 | N62: 2022-12-30 | O62: РО
A63: Итого по муниципальному образованию | C63: x | D63: x | E63: x | F63: x | G63: =SUM(G61:G62) -> 2 | H63: x | I63: =SUM(I61:I62) -> 6450.8 | J63: =SUM(J61:J62) -> 6450.8 | K63: =SUM(K61:K62) -> 194.3 | L63: =SUM(L61:L62) -> 172 | M63: =SUM(M61:M62) -> 5472380.26
A64: Муниципальное образование Светогорское городское поселение
A65: =A62+1 -> 29 | B65: Г. Светогорск, ул. Красноармейская, д. 26 | C65: 1984 | E65: панель | F65: 9 | G65: 3 | H65: 3 | I65: 6751.6 | J65: 6751.6 | K65: 4709.1 | L65: 217 | M65: =SUMIF('2020 Раздел 2'!B:B,B65,'2020 Раздел 2'!C:C)+SUMIF('2021 Раздел 3'!B:B,B65,'2021 Раздел 3'!C:C)+SUMIF('2022 Раздел 4'!B:B,B65,'2022 Раздел 4'!C:C) -> 8324810.25 | N65: 2022-12-30 | O65: РО
A66: =A65+1 -> 30 | B66: Г. Светогорск, ул. Красноармейская, д. 32 | C66: 1983 | E66: панель | F66: 9 | G66: 5 | H66: 6 | I66: 9392.4 | J66: 9392.4 | K66: 9392.4 | L66: 411 | M66: =SUMIF('2020 Раздел 2'!B:B,B66,'2020 Раздел 2'!C:C)+SUMIF('2021 Раздел 3'!B:B,B66,'2021 Раздел 3'!C:C)+SUMIF('2022 Раздел 4'!B:B,B66,'2022 Раздел 4'!C:C) -> 9594930.01 | N66: 2022-12-30 | O66: РО
A67: =A66+1 -> 31 | B67: Г. Светогорск, ул. Красноармейская, д. 8 | C67: 1984 | E67: панель | F67: 9 | G67: 3 | H67: 3 | I67: 4683.9 | J67: 4683.9 | K67: 4650.5 | L67: 171 | M67: =SUMIF('2020 Раздел 2'!B:B,B67,'2020 Раздел 2'!C:C)+SUMIF('2021 Раздел 3'!B:B,B67,'2021 Раздел 3'!C:C)+SUMIF('2022 Раздел 4'!B:B,B67,'2022 Раздел 4'!C:C) -> 7759701.1 | N67: 2022-12-30 | O67: РО
A68: Итого по муниципальному образованию | C68: x | D68: x | E68: x | F68: x | G68: =SUM(G65:G67) -> 11 | H68: x | I68: =SUM(I65:I67) -> 20827.9 | J68: 20827.9 | K68: 18752 | L68: 799 | M68: =SUM(M65:M67) -> 25679441.36 | N68: x | O68: x | Q68: =#REF!-'2020 Раздел 2'!C42 -> 
A69: Муниципальное образование Советское городское поселение
A70: =A67+1 -> 32 | B70: Г.п. Советский, ул. Садовая, д. 46 | C70: 1986 | E70: блочный | F70: 9 | G70: 1 | H70: 1 | I70: 4024.4 | J70: 4024.4 | K70: 3621.96 | L70: 122 | M70: =SUMIF('2020 Раздел 2'!B:B,B70,'2020 Раздел 2'!C:C)+SUMIF('2021 Раздел 3'!B:B,B70,'2021 Раздел 3'!C:C)+SUMIF('2022 Раздел 4'!B:B,B70,'2022 Раздел 4'!C:C) -> 2381097.22 | N70: 2022-12-30 | O70: РО
A71: Итого по муниципальному образованию | C71: x | D71: x | E71: x | F71: x | G71: 1 | H71: x | I71: =SUM(I70) -> 4024.4 | J71: =SUM(J70) -> 4024.4 | K71: =SUM(K70) -> 3621.96 | L71: =SUM(L70) -> 122 | M71: =M70 -> 2381097.22 | N71: x | O71: x
A72: Итого по Выборгскому району | C72: x | D72: x | E72: x | F72: x | G72: =G71+G68+G63+G59 -> 29 | H72: x | I72: =I71+I68+I63+I59 -> 62208.09 | J72: =J71+J68+J63+J59 -> 62208.09 | K72: =K71+K68+K63+K59 -> 50485.77 | L72: =L71+L68+L63+L59 -> 2341 | M72: =M71+M68+M63+M59 -> 77520181.24 | N72: x | O72: x | P72: =M72-'2020 Раздел 2'!C45-'2021 Раздел 3'!C41-'2022 Раздел 4'!C28 -> -1.862645149e-08 | Q72: =#REF!-'2020 Раздел 2'!C45-'2021 Раздел 3'!C41-'2022 Раздел 4'!C28 -> 
A73: Гатчинский муниципальный район
A74: Муниципальное образование Город Гатчина
A75: =A70+1 -> 33 | B75: Г. Гатчина, просп. 25 Октября, д. 59 | C75: 1993 | E75: кирпич | F75: 6 | G75: 3 | H75: 3 | I75: 15895.7 | J75: 7164.3 | K75: 6932.7 | L75: 239 | M75: =SUMIF('2020 Раздел 2'!B:B,B75,'2020 Раздел 2'!C:C)+SUMIF('2021 Раздел 3'!B:B,B75,'2021 Раздел 3'!C:C)+SUMIF('2022 Раздел 4'!B:B,B75,'2022 Раздел 4'!C:C) -> 8207128.38 | N75: 2022-12-30 | O75: РО
A76: =A75+1 -> 34 | B76: Г. Гатчина, ул. Красных Военлётов, д. 9 | C76: 1990 | E76: панельный | F76: 9 | H76: 4 | I76: 12490.5 | J76: 8071.5 | K76: 7355.2 | L76: 387 | M76: =SUMIF('2020 Раздел 2'!B:B,B76,'2020 Раздел 2'!C:C)+SUMIF('2021 Раздел 3'!B:B,B76,'2021 Раздел 3'!C:C)+SUMIF('2022 Раздел 4'!B:B,B76,'2022 Раздел 4'!C:C) -> 520000 | N76: 2022-12-30 | O76: РО
A77: =A76+1 -> 35 | B77: Г. Гатчина, ул. Рощинская, д. 11, кор. 1 | C77: 1993 | E77: кирпич | F77: 8 | G77: 1 | H77: 1 | I77: 3301.1 | J77: 1510.1 | K77: 1328.7 | L77: 92 | M77: =SUMIF('2020 Раздел 2'!B:B,B77,'2020 Раздел 2'!C:C)+SUMIF('2021 Раздел 3'!B:B,B77,'2021 Раздел 3'!C:C)+SUMIF('2022 Раздел 4'!B:B,B77,'2022 Раздел 4'!C:C) -> 2735709.46 | N77: 2022-12-30 | O77: РО
A78: 36 | B78: Г. Гатчина, ул. Рощинская, д. 13А | C78: 1991 | E78: кирпич | F78: 5 | G78: 2 | H78: 2 | I78: 3831.4 | J78: 1743.9 | K78: 2237.8 | L78: 95 | M78: =SUMIF('2020 Раздел 2'!B:B,B78,'2020 Раздел 2'!C:C)+SUMIF('2021 Раздел 3'!B:B,B78,'2021 Раздел 3'!C:C)+SUMIF('2022 Раздел 4'!B:B,B78,'2022 Раздел 4'!C:C) -> 5471418.92 | N78: 2022-12-30 | O78: РО
A79: 37 | B79: Г. Гатчина, ул. Рощинская, д. 19 | C79: 1994 | E79: кирпич | F79: 7 | G79: 4 | H79: 5 | I79: 12030.6 | J79: 11199.2 | K79: 8436.8 | L79: 298 | M79: =SUMIF('2020 Раздел 2'!B:B,B79,'2020 Раздел 2'!C:C)+SUMIF('2021 Раздел 3'!B:B,B79,'2021 Раздел 3'!C:C)+SUMIF('2022 Раздел 4'!B:B,B79,'2022 Раздел 4'!C:C) -> 15506545.84 | N79: 2022-12-30 | O79: РО
A80: 38 | B80: Г. Гатчина, ул. Рощинская, д. 3А | C80: 1993 | E80: панельный | F80: 9 | G80: 2 | H80: 2 | I80: 6130.2 | J80: 4094.2 | K80: 3859.6 | L80: 95 | M80: =SUMIF('2020 Раздел 2'!B:B,B80,'2020 Раздел 2'!C:C)+SUMIF('2021 Раздел 3'!B:B,B80,'2021 Раздел 3'!C:C)+SUMIF('2022 Раздел 4'!B:B,B80,'2022 Раздел 4'!C:C) -> 5471418.92 | N80: 2022-12-30 | O80: РО
A81: 39 | B81: Г. Гатчина, ул. Рощинская, д. 9Г | C81: 1993 | E81: панельный | F81: 9 | G81: 2 | H81: 2 | I81: 6222 | J81: 4056.6 | K81: 3960.4 | L81: 194 | M81: =SUMIF('2020 Раздел 2'!B:B,B81,'2020 Раздел 2'!C:C)+SUMIF('2021 Раздел 3'!B:B,B81,'2021 Раздел 3'!C:C)+SUMIF('2022 Раздел 4'!B:B,B81,'2022 Раздел 4'!C:C) -> 7753272.92 | N81: 2022-12-30 | O81: РО
A82: 40 | B82: Г. Гатчина, ул. Хохлова, д. 2 | C82: 1995 | E82: кирпич | F82: 7 | G82: 3 | H82: 3 | I82: 5575.2 | J82: 3438.6 | K82: 3109.3 | L82: 196 | M82: =SUMIF('2020 Раздел 2'!B:B,B82,'2020 Раздел 2'!C:C)+SUMIF('2021 Раздел 3'!B:B,B82,'2021 Раздел 3'!C:C)+SUMIF('2022 Раздел 4'!B:B,B82,'2022 Раздел 4'!C:C) -> 7914946.38 | N82: 2022-12-30 | O82: РО
A83: Итого по муниципальному образованию | C83: x | D83: x | E83: x | F83: x | G83: =SUM(G75:G82) -> 17 | H83: x | I83: =SUM(I75:I82) -> 65476.7 | J83: =SUM(J75:J82) -> 41278.4 | K83: =SUM(K75:K82) -> 37220.5 | L83: =SUM(L75:L82) -> 1596 | M83: =SUM(M75:M82) -> 53580440.82 | N83: x | O83: x
A84: Итого по Гатчинскому муниципальному району | C84: x | D84: x | E84: x | F84: x | G84: =G83 -> 17 | H84: x | I84: =SUM(I83) -> 65476.7 | J84: =SUM(J83) -> 41278.4 | K84: =SUM(K83) -> 37220.5 | L84: =SUM(L83) -> 1596 | M84: =M83 -> 53580440.82 | N84: x | O84: x | P84: =M84-'2020 Раздел 2'!C53-'2021 Раздел 3'!C50-'2022 Раздел 4'!C36 -> 0 | Q84: =#REF!-'2020 Раздел 2'!C53-'2021 Раздел 3'!C50-'2022 Раздел 4'!C36 -> 
A85: Киришский муниципальный район
A86: Муниципальное образование Киришское городское поселение
A87: =A82+1 -> 41 | B87: Г. Кириши, бул. Плавницкий, д. 16 | C87: 1992 | E87: панель | F87: 9 | G87: 1 | H87: 1 | I87: 2398.8 | J87: 2121.8 | K87: 2121.8 | L87: 93 | M87: =SUMIF('2020 Раздел 2'!B:B,B87,'2020 Раздел 2'!C:C)+SUMIF('2021 Раздел 3'!B:B,B87,'2021 Раздел 3'!C:C)+SUMIF('2022 Раздел 4'!B:B,B87,'2022 Раздел 4'!C:C) -> 2803026.64 | N87: 2022-12-30 | O87: РО | P87: =M87-'2020 Раздел 2'!C56 -> 0
A88: =A87+1 -> 42 | B88: Г. Кириши, бул. Плавницкий, д. 36 | C88: 1997 | E88: панель | F88: 9 | G88: 1 | H88: 1 | I88: 3356 | J88: 3000 | K88: 3000 | L88: 101 | M88: =SUMIF('2020 Раздел 2'!B:B,B88,'2020 Раздел 2'!C:C)+SUMIF('2021 Раздел 3'!B:B,B88,'2021 Раздел 3'!C:C)+SUMIF('2022 Раздел 4'!B:B,B88,'2022 Раздел 4'!C:C) -> 2735709.46 | N88: 2022-12-30 | O88: РО | P88: =M88-'2021 Раздел 3'!C53-'2022 Раздел 4'!C39 -> 0
A89: 43 | B89: Г. Кириши, пер. Березовый, д. 10 | C89: 1996 | E89: панель | F89: 9 | G89: 1 | H89: 1 | I89: 2631.1 | J89: 2344.1 | K89: 2344.1 | L89: 101 | M89: =SUMIF('2020 Раздел 2'!B:B,B89,'2020 Раздел 2'!C:C)+SUMIF('2021 Раздел 3'!B:B,B89,'2021 Раздел 3'!C:C)+SUMIF('2022 Раздел 4'!B:B,B89,'2022 Раздел 4'!C:C) -> 2638315.46 | N89: 2022-12-30 | O89: РО
A90: 44 | B90: Г. Кириши, просп. Героев, д. 15 | C90: 1994 | E90: панель | F90: 9 | G90: 1 | H90: 1 | I90: 2426.1 | J90: 2147 | K90: 2147 | L90: 71 | M90: =SUMIF('2020 Раздел 2'!B:B,B90,'2020 Раздел 2'!C:C)+SUMIF('2021 Раздел 3'!B:B,B90,'2021 Раздел 3'!C:C)+SUMIF('2022 Раздел 4'!B:B,B90,'2022 Раздел 4'!C:C) -> 2802614.46 | N90: 2022-12-30 | O90: РО
A91: 45 | B91: Г. Кириши, просп. Героев, д. 17 | C91: 1993 | E91: панель | F91: 9 | G91: 2 | H91: 2 | I91: 5223.7 | J91: 4642.3 | K91: 4642.3 | L91: 159 | M91: =SUMIF('2020 Раздел 2'!B:B,B91,'2020 Раздел 2'!C:C)+SUMIF('2021 Раздел 3'!B:B,B91,'2021 Раздел 3'!C:C)+SUMIF('2022 Раздел 4'!B:B,B91,'2022 Раздел 4'!C:C) -> 5567978.94 | N91: 2022-12-30 | O91: РО
A92: 46 | B92: Г. Кириши, просп. Ленина, д. 40 | C92: 1991 | E92: панель/кирпич | F92: 5/7 | G92: 1 | H92: 5 | I92: 5647 | J92: 4916.8 | K92: 3992 | L92: 176 | M92: =SUMIF('2020 Раздел 2'!B:B,B92,'2020 Раздел 2'!C:C)+SUMIF('2021 Раздел 3'!B:B,B92,'2021 Раздел 3'!C:C)+SUMIF('2022 Раздел 4'!B:B,B92,'2022 Раздел 4'!C:C) -> 2735709.46 | N92: 2022-12-30 | O92: РО
A93: 47 | B93: Г. Кириши, просп. Ленина, д. 9 | C93: 1964 | E93: кирпич | F93: 9 | G93: 1 | H93: 1 | I93: 2289.91 | J93: 1995.59 | K93: 1940.69 | L93: 73 | M93: =SUMIF('2020 Раздел 2'!B:B,B93,'2020 Раздел 2'!C:C)+SUMIF('2021 Раздел 3'!B:B,B93,'2021 Раздел 3'!C:C)+SUMIF('2022 Раздел 4'!B:B,B93,'2022 Раздел 4'!C:C) -> 2735709.46 | N93: 2022-12-30 | O93: РО
A94: 48 | B94: Г. Кириши, ул. Декабристов Бестужевых, д. 16 | C94: 1990 | E94: панель | F94: 9 | G94: 1 | H94: 1 | I94: 3261.7 | J94: 2702.6 | K94: 2702.6 | L94: 108 | M94: =SUMIF('2020 Раздел 2'!B:B,B94,'2020 Раздел 2'!C:C)+SUMIF('2021 Раздел 3'!B:B,B94,'2021 Раздел 3'!C:C)+SUMIF('2022 Раздел 4'!B:B,B94,'2022 Раздел 4'!C:C) -> 2803590.77 | N94: 2022-12-30 | O94: РО
A95: 49 | B95: Г. Кириши, ул. Строителей, д. 2 | C95: 1971 | E95: кирпич | F95: 9 | G95: 1 | H95: 5 | I95: 15493.65 | J95: 13099.2 | K95: 11188 | L95: 519 | M95: =SUMIF('2020 Раздел 2'!B:B,B95,'2020 Раздел 2'!C:C)+SUMIF('2021 Раздел 3'!B:B,B95,'2021 Раздел 3'!C:C)+SUMIF('2022 Раздел 4'!B:B,B95,'2022 Раздел 4'!C:C) -> 2735709.46 | N95: 2022-12-30 | O95: РО
A96: 50 | B96: Г. Кириши, ул. Строителей, д. 26 | C96: 1974 | E96: кирпич | F96: 9 | G96: 1 | H96: 5 | I96: 15470.37 | J96: 13282.4 | K96: 11176.5 | L96: 466 | M96: =SUMIF('2020 Раздел 2'!B:B,B96,'2020 Раздел 2'!C:C)+SUMIF('2021 Раздел 3'!B:B,B96,'2021 Раздел 3'!C:C)+SUMIF('2022 Раздел 4'!B:B,B96,'2022 Раздел 4'!C:C) -> 2735709.46 | N96: 2022-12-30 | O96: РО
A97: 51 | B97: Г. Кириши, ул. Строителей, д. 28 | C97: 1993 | E97: панель | F97: 9 | G97: 1 | H97: 1 | I97: 2749.3 | J97: 2473.7 | K97: 2411.3 | L97: 90 | M97: =SUMIF('2020 Раздел 2'!B:B,B97,'2020 Раздел 2'!C:C)+SUMIF('2021 Раздел 3'!B:B,B97,'2021 Раздел 3'!C:C)+SUMIF('2022 Раздел 4'!B:B,B97,'2022 Раздел 4'!C:C) -> 2803316.73 | N97: 2022-12-30 | O97: РО
A98: 52 | B98: Г. Кириши, ул. Строителей, д. 30 | C98: 1991 | E98: панель | F98: 9 | G98: 3 | H98: 3 | I98: 7631.2 | J98: 6837.2 | K98: 6765.7 | L98: 259 | M98: =SUMIF('2020 Раздел 2'!B:B,B98,'2020 Раздел 2'!C:C)+SUMIF('2021 Раздел 3'!B:B,B98,'2021 Раздел 3'!C:C)+SUMIF('2022 Раздел 4'!B:B,B98,'2022 Раздел 4'!C:C) -> 8449707.67 | N98: 2022-12-30 | O98: РО
A99: 53 | B99: Г. Кириши, ул. Строителей, д. 30А | C99: 1996 | E99: кирпич | F99: 9 | G99: 1 | H99: 1 | I99: 2873.8 | J99: 2722 | K99: 2570.2 | L99: 102 | M99: =SUMIF('2020 Раздел 2'!B:B,B99,'2020 Раздел 2'!C:C)+SUMIF('2021 Раздел 3'!B:B,B99,'2021 Раздел 3'!C:C)+SUMIF('2022 Раздел 4'!B:B,B99,'2022 Раздел 4'!C:C) -> 2736190.13 | N99: 2022-12-30 | O99: РО
A100: 54 | B100: Г. Кириши, ул. Строителей, д. 46 | C100: 1991 | E100: панель | F100: 9 | G100: 4 | H100: 4 | I100: 9023.5 | J100: 7928.7 | K100: 7928.7 | L100: 334 | M100: =SUMIF('2020 Раздел 2'!B:B,B100,'2020 Раздел 2'!C:C)+SUMIF('2021 Раздел 3'!B:B,B100,'2021 Раздел 3'!C:C)+SUMIF('2022 Раздел 4'!B:B,B100,'2022 Раздел 4'!C:C) -> 11264437.79 | N100: 2022-12-30 | O100: РО
A101: 55 | B101: Г. Кириши, ул. Энергетиков, д. 40 | C101: 1994 | E101: панель | F101: 9 | G101: 1 | H101: 1 | I101: 2724.9 | J101: 2445.3 | K101: 2445.3 | L101: 87 | M101: =SUMIF('2020 Раздел 2'!B:B,B101,'2020 Раздел 2'!C:C)+SUMIF('2021 Раздел 3'!B:B,B101,'2021 Раздел 3'!C:C)+SUMIF('2022 Раздел 4'!B:B,B101,'2022 Раздел 4'!C:C) -> 2803602.38 | N101: 2022-12-30 | O101: РО
A102: Итого по муниципальному образованию | C102: x | D102: x | E102: x | F102: x | G102: =SUM(G87:G101) -> 21 | H102: x | I102: =SUM(I87:I101) -> 83201.03 | J102: 72658.69 | K102: 67376.19 | L102: 2739 | M102: 58351328.27 | N102: x | O102: x
A103: Итого по Киришскому муниципальному району | C103: x | D103: x | E103: x | F103: x | G103: =G102 -> 21 | H103: x | I103: =SUM(I102) -> 83201.03 | J103: =SUM(J102) -> 72658.69 | K103: =SUM(K102) -> 67376.19 | L103: =SUM(L102) -> 2739 | M103: =M102 -> 58351328.27 | N103: x | O103: x | P103: =M103-'2020 Раздел 2'!C66-'2021 Раздел 3'!C60-'2022 Раздел 4'!C46 -> 0 | Q103: =#REF!-'2020 Раздел 2'!C66-'2021 Раздел 3'!#REF!-'2022 Раздел 4'!C46 -> 
A104: Кировский муниципальный район
A105: Муниципальное образование Кировское городское поселение
A106: =A101+1 -> 56 | B106: Г. Кировск, ул. Молодежная, д. 3 | C106: 1994 | E106: панели | F106: 9 | G106: 1 | H106: 1 | I106: 2073.9 | J106: 2073.9 | K106: 2073.9 | L106: 102 | M106: =SUMIF('2020 Раздел 2'!B:B,B106,'2020 Раздел 2'!C:C)+SUMIF('2021 Раздел 3'!B:B,B106,'2021 Раздел 3'!C:C)+SUMIF('2022 Раздел 4'!B:B,B106,'2022 Раздел 4'!C:C) -> 2638315.46 | N106: 2022-12-30 | O106: РО
A107: =A106+1 -> 57 | B107: Г. Кировск, ул. Молодежная, д. 5 | C107: 1993 | E107: панели | F107: 9 | G107: 1 | H107: 1 | I107: 2127.07 | J107: 2127.07 | K107: 2127.07 | L107: 85 | M107: =SUMIF('2020 Раздел 2'!B:B,B107,'2020 Раздел 2'!C:C)+SUMIF('2021 Раздел 3'!B:B,B107,'2021 Раздел 3'!C:C)+SUMIF('2022 Раздел 4'!B:B,B107,'2022 Раздел 4'!C:C) -> 2638315.46 | N107: 2022-12-30 | O107: РО
A108: Итого по муниципальному образованию | C108: x | D108: x | E108: x | F108: x | G108: =SUM(G106:G107) -> 2 | H108: x | I108: =SUM(I106:I107) -> 4200.97 | J108: =SUM(J106:J107) -> 4200.97 | K108: =SUM(K106:K107) -> 4200.97 | L108: =SUM(L106:L107) -> 187 | M108: =SUM(M106:M107) -> 5276630.92 | N108: x | O108: x
A109: Муниципальное образование Отрадненское городское поселение
A110: =A107+1 -> 58 | B110: Г. Отрадное, ул. Гагарина, д. 16 | C110: 1991 | E110: ж/б панели | F110: 9 | G110: 2 | H110: 2 | I110: 6265.86 | J110: 4148.36 | K110: 4148.36 | L110: 163 | M110: =SUMIF('2020 Раздел 2'!B:B,B110,'2020 Раздел 2'!C:C)+SUMIF('2021 Раздел 3'!B:B,B110,'2021 Раздел 3'!C:C)+SUMIF('2022 Раздел 4'!B:B,B110,'2022 Раздел 4'!C:C) -> 5473380.26 | N110: 2022-12-30 | O110: РО
A111: =A110+1 -> 59 | B111: Г. Отрадное, ул. Железнодорожная, д. 13 | C111: 1991 | E111: кирпич | F111: 9 | G111: 2 | H111: 2 | I111: 6262.84 | J111: 6262.84 | K111: 4134.32 | L111: 183 | M111: =SUMIF('2020 Раздел 2'!B:B,B111,'2020 Раздел 2'!C:C)+SUMIF('2021 Раздел 3'!B:B,B111,'2021 Раздел 3'!C:C)+SUMIF('2022 Раздел 4'!B:B,B111,'2022 Раздел 4'!C:C) -> 5276630.92 | N111: 2022-12-30 | O111: РО
A112: =A111+1 -> 60 | B112: Г. Отрадное, ул. Зарубина, д. 15 | C112: 1986 | E112: кирпич | F112: 9 | G112: 1 | H112: 1 | I112: 1900 | J112: 1900 | K112: 2573.98 | L112: 132 | M112: =SUMIF('2020 Раздел 2'!B:B,B112,'2020 Раздел 2'!C:C)+SUMIF('2021 Раздел 3'!B:B,B112,'2021 Раздел 3'!C:C)+SUMIF('2022 Раздел 4'!B:B,B112,'2022 Раздел 4'!C:C) -> 2638315.46 | N112: 2022-12-30 | O112: РО
A113: =A112+1 -> 61 | B113: Г. Отрадное, ул. Лесная, д. 10 | C113: 1990 | E113: панель | F113: 9 | G113: 1 | H113: 1 | I113: 3066.28 | J113: 3066.28 | K113: 1995.12 | L113: 83 | M113: =SUMIF('2020 Раздел 2'!B:B,B113,'2020 Раздел 2'!C:C)+SUMIF('2021 Раздел 3'!B:B,B113,'2021 Раздел 3'!C:C)+SUMIF('2022 Раздел 4'!B:B,B113,'2022 Раздел 4'!C:C) -> 3288315.46 | N113: 2022-12-30 | O113: РО
A114: =A113+1 -> 62 | B114: Г. Отрадное, ул. Центральная,д.17 | C114: 1995 | E114: панель | F114: 9 | G114: 4 | H114: 4 | I114: 12228.58 | J114: 12228.58 | K114: 8004.95 | L114: 276 | M114: =SUMIF('2020 Раздел 2'!B:B,B114,'2020 Раздел 2'!C:C)+SUMIF('2021 Раздел 3'!B:B,B114,'2021 Раздел 3'!C:C)+SUMIF('2022 Раздел 4'!B:B,B114,'2022 Раздел 4'!C:C) -> 10553261.84 | N114: 2022-12-30 | O114: РО
A115: =A114+1 -> 63 | B115: Г. Отрадное, ул. Щурова, д.4 | C115: 1988 | E115: панель | F115: 9 | G115: 2 | H115: 2 | I115: 6155.35 | J115: 6155.35 | K115: 4039.83 | L115: 176 | M115: =SUMIF('2020 Раздел 2'!B:B,B115,'2020 Раздел 2'!C:C)+SUMIF('2021 Раздел 3'!B:B,B115,'2021 Раздел 3'!C:C)+SUMIF('2022 Раздел 4'!B:B,B115,'2022 Раздел 4'!C:C) -> 5276630.92 | N115: 2022-12-30 | O115: РО
A116: Итого по муниципальному образованию | C116: x | D116: x | E116: x | F116: x | G116: =SUM(G110:G115) -> 12 | H116: x | I116: =SUM(I110:I115) -> 35878.91 | J116: =SUM(J110:J115) -> 33761.41 | K116: =SUM(K110:K115) -> 24896.56 | L116: =SUM(L110:L115) -> 1013 | M116: =SUM(M110:M115) -> 32506534.86 | N116: x | O116: x | P116: =M116-'2020 Раздел 2'!C78-'2021 Раздел 3'!C72 -> 5473380.26
A117: Итого по Кировскому муниципальному району | C117: x | D117: x | E117: x | F117: x | G117: =G108+G116 -> 14 | H117: x | I117: =I108+I116 -> 40079.88 | J117: =J108+J116 -> 37962.38 | K117: =K108+K116 -> 29097.53 | L117: =L108+L116 -> 1200 | M117: =M108+M116 -> 37783165.78 | N117: x | O117: x | P117: =M117-'2020 Раздел 2'!C79-'2021 Раздел 3'!C73 -> 5473380.26 | Q117: =#REF!-'2020 Раздел 2'!C79-'2021 Раздел 3'!C65 -> 
A118: Ломоносовский муниципальный район
A119: Муниципальное образование Аннинское сельское поселение
A120: =A115+1 -> 64 | B120: Г.п. Новоселье, д. 7 | C120: 2002 | F120: 8 | G120: 4 | I120: 8904.3 | J120: 8904.3 | K120: 4472.9 | L120: 159 | M120: =SUMIF('2020 Раздел 2'!B:B,B120,'2020 Раздел 2'!C:C)+SUMIF('2021 Раздел 3'!B:B,B120,'2021 Раздел 3'!C:C)+SUMIF('2022 Раздел 4'!B:B,B120,'2022 Раздел 4'!C:C) -> 10942837.84 | N120: 2022-12-30 | O120: РО
A121: Итого по муниципальному образованию | C121: x | D121: x | E121: x | F121: x | G121: =G120 -> 4 | H121: x | I121: =I120 -> 8904.3 | J121: =SUM(J120) -> 8904.3 | K121: =SUM(K120) -> 4472.9 | L121: =SUM(L120) -> 159 | M121: =M120 -> 10942837.84 | N121: x | O121: x
A122: Итого по Ломоносовскому муниципальному району | C122: x | D122: x | E122: x | F122: x | G122: =G121 -> 4 | H122: x | I122: 8904.3 | J122: 8904.3 | K122: 4472.9 | L122: 159 | M122: =M121 -> 10942837.84 | N122: x | O122: x | Q122: =#REF!-'2020 Раздел 2'!#REF! -> 
A123: Лужский муниципальный район
A124: Муниципальное образование Лужское городское поселение
A125: =A120+1 -> 65 | B125: Г. Луга, просп. Володарского, д. 26 | C125: 1991 | E125: панель | F125: 9 | G125: 2 | H125: 2 | I125: 4870.2 | J125: 3988.5 | K125: 2974.7 | L125: 168 | M125: =SUMIF('2020 Раздел 2'!B:B,B125,'2020 Раздел 2'!C:C)+SUMIF('2021 Раздел 3'!B:B,B125,'2021 Раздел 3'!C:C)+SUMIF('2022 Раздел 4'!B:B,B125,'2022 Раздел 4'!C:C) -> 7140000 | N125: 2022-12-30 | O125: РО
A126: =A125+1 -> 66 | B126: Г. Луга, просп. Урицкого, д. 101 | C126: 1993 | E126: панель | F126: 9 | G126: 1 | H126: 1 | I126: 2745.8 | J126: 2014.5 | K126: 1974.3 | L126: 59 | M126: =SUMIF('2020 Раздел 2'!B:B,B126,'2020 Раздел 2'!C:C)+SUMIF('2021 Раздел 3'!B:B,B126,'2021 Раздел 3'!C:C)+SUMIF('2022 Раздел 4'!B:B,B126,'2022 Раздел 4'!C:C) -> 2638315.46 | N126: 2022-12-30 | O126: РО
A127: 67 | B127: Г. Луга, просп. Урицкого, д. 99 | C127: 1993 | E127: панель | F127: 9 | G127: 1 | H127: 1 | I127: 2737.5 | J127: 2006.2 | K127: 1877.9 | L127: 81 | M127: =SUMIF('2020 Раздел 2'!B:B,B127,'2020 Раздел 2'!C:C)+SUMIF('2021 Раздел 3'!B:B,B127,'2021 Раздел 3'!C:C)+SUMIF('2022 Раздел 4'!B:B,B127,'2022 Раздел 4'!C:C) -> 2638315.46 | N127: 2022-12-30 | O127: РО
A128: 68 | B128: Г. Луга, ул. Миккели, д. 1, кор. 1 | C128: 1993 | E128: панель | F128: 5/9 | G128: 1 | H128: 5 | I128: 7582 | J128: 5566 | K128: 5357.5 | L128: 202 | M128: =SUMIF('2020 Раздел 2'!B:B,B128,'2020 Раздел 2'!C:C)+SUMIF('2021 Раздел 3'!B:B,B128,'2021 Раздел 3'!C:C)+SUMIF('2022 Раздел 4'!B:B,B128,'2022 Раздел 4'!C:C) -> 3876636.46 | N128: 2022-12-30 | O128: РО
A129: 69 | B129: Г. Луга, ул. Миккели, д. 1, кор. 2 | C129: 1993 | E129: ж/б панели | F129: 9 | G129: 1 | H129: 4 | I129: 7586.9 | J129: 5570.5 | K129: 5570.5 | L129: 168 | M129: =SUMIF('2020 Раздел 2'!B:B,B129,'2020 Раздел 2'!C:C)+SUMIF('2021 Раздел 3'!B:B,B129,'2021 Раздел 3'!C:C)+SUMIF('2022 Раздел 4'!B:B,B129,'2022 Раздел 4'!C:C) -> 2736190.13 | N129: 2022-12-30 | O129: РО
A130: 70 | B130: Г. Луга, ул. Миккели, д. 1, кор. 3 | C130: 1994 | E130: панель | F130: 5/9 | G130: 1 | H130: 5 | I130: 7571.2 | J130: 5555.2 | K130: 5201.3 | L130: 189 | M130: =SUMIF('2020 Раздел 2'!B:B,B130,'2020 Раздел 2'!C:C)+SUMIF('2021 Раздел 3'!B:B,B130,'2021 Раздел 3'!C:C)+SUMIF('2022 Раздел 4'!B:B,B130,'2022 Раздел 4'!C:C) -> 3876636.46 | N130: 2022-12-30 | O130: РО
A131: 71 | B131: Г. Луга, ул. Победы, д. 4 | C131: 1988 | E131: панель | F131: 9 | G131: 1 | H131: 1 | I131: 3004.6 | J131: 1954.4 | K131: 1803.1 | L131: 82 | M131: =SUMIF('2020 Раздел 2'!B:B,B131,'2020 Раздел 2'!C:C)+SUMIF('2021 Раздел 3'!B:B,B131,'2021 Раздел 3'!C:C)+SUMIF('2022 Раздел 4'!B:B,B131,'2022 Раздел 4'!C:C) -> 3570000 | N131: 2022-12-30 | O131: РО
A132: 72 | B132: Г. Луга, ул. Победы, д. 7 | C132: 1977 | E132: кирпич | F132: 10 | G132: 1 | H132: 1 | I132: 2562.3 | J132: 2180.7 | K132: 1976.5 | L132: 89 | M132: =SUMIF('2020 Раздел 2'!B:B,B132,'2020 Раздел 2'!C:C)+SUMIF('2021 Раздел 3'!B:B,B132,'2021 Раздел 3'!C:C)+SUMIF('2022 Раздел 4'!B:B,B132,'2022 Раздел 4'!C:C) -> 3700000 | N132: 2022-12-30 | O132: РО
A133: Итого по муниципальному образованию | C133: x | D133: x | E133: x | F133: x | G133: =SUM(G125:G132) -> 9 | H133: x | I133: =SUM(I125:I132) -> 38660.5 | J133: 28836 | K133: 26735.8 | L133: 1038 | M133: 30176093.97 | N133: x | O133: x
A134: Итого по Лужскому муниципальному району | C134: x | D134: x | E134: x | F134: x | G134: =G133 -> 9 | H134: x | I134: =SUM(I133) -> 38660.5 | J134: =SUM(J133) -> 28836 | K134: =SUM(K133) -> 26735.8 | L134: =SUM(L133) -> 1038 | M134: =M133 -> 30176093.97 | N134: x | O134: x | P134: =M134-'2020 Раздел 2'!C90-'2021 Раздел 3'!C84 -> 2736190.13 | Q134: =#REF!-'2020 Раздел 2'!C90-'2021 Раздел 3'!C65 -> 
A135: Сосновоборский городской округ
A136: Муниципальное образование Сосновоборский городской округ
A137: =A132+1 -> 73 | B137: Г. Сосновый Бор, ул. Ленинградская, д. 38 | C137: 1987 | E137: кирпич | F137: 9 | G137: 1 | H137: 1 | I137: 1790.8 | J137: 1090.4 | K137: 1090.4 | L137: 82 | M137: =SUMIF('2020 Раздел 2'!B:B,B137,'2020 Раздел 2'!C:C)+SUMIF('2021 Раздел 3'!B:B,B137,'2021 Раздел 3'!C:C)+SUMIF('2022 Раздел 4'!B:B,B137,'2022 Раздел 4'!C:C) -> 2735709.46 | N137: 2022-12-30 | O137: РО
A138: =A137+1 -> 74 | B138: Г. Сосновый Бор, ул. Молодежная, д. 26 | C138: 1989 | E138: панель | F138: 9 | G138: 2 | H138: 2 | I138: 3940.2 | J138: 3940.2 | K138: 2291.4 | L138: 166 | M138: =SUMIF('2020 Раздел 2'!B:B,B138,'2020 Раздел 2'!C:C)+SUMIF('2021 Раздел 3'!B:B,B138,'2021 Раздел 3'!C:C)+SUMIF('2022 Раздел 4'!B:B,B138,'2022 Раздел 4'!C:C) -> 7594407.96 | N138: 2022-12-30 | O138: РО
A139: =A138+1 -> 75 | B139: Г. Сосновый Бор, ул. Парковая, д. 70 | C139: 1994 | E139: кирпич | F139: 9 | G139: 1 | H139: 1 | I139: 2238.1 | J139: 2238.1 | K139: 1332.8 | L139: 98 | M139: =SUMIF('2020 Раздел 2'!B:B,B139,'2020 Раздел 2'!C:C)+SUMIF('2021 Раздел 3'!B:B,B139,'2021 Раздел 3'!C:C)+SUMIF('2022 Раздел 4'!B:B,B139,'2022 Раздел 4'!C:C) -> 2735709.46 | N139: 2022-12-30 | O139: РО
A140: =A139+1 -> 76 | B140: Г. Сосновый Бор, ул. Сибирская, д. 5 | C140: 1973 | E140: кирпич | F140: 9 | G140: 1 | H140: 1 | I140: 2017.7 | J140: 2017.7 | K140: 1989 | L140: 85 | M140: =SUMIF('2020 Раздел 2'!B:B,B140,'2020 Раздел 2'!C:C)+SUMIF('2021 Раздел 3'!B:B,B140,'2021 Раздел 3'!C:C)+SUMIF('2022 Раздел 4'!B:B,B140,'2022 Раздел 4'!C:C) -> 3880100.4 | N140: 2022-12-30 | O140: РО
A141: =A140+1 -> 77 | B141: Г. Сосновый Бор, ул. Солнечная, д. 30 | C141: 1977 | E141: кирпич | F141: 12 | G141: 2 | H141: 1 | I141: 3993 | J141: 3993 | K141: 2332.7 | L141: 171 | M141: =SUMIF('2020 Раздел 2'!B:B,B141,'2020 Раздел 2'!C:C)+SUMIF('2021 Раздел 3'!B:B,B141,'2021 Раздел 3'!C:C)+SUMIF('2022 Раздел 4'!B:B,B141,'2022 Раздел 4'!C:C) -> 5901813.6 | N141: 2022-12-30 | O141: РО
A142: Итого по муниципальному образованию | C142: x | D142: x | E142: x | F142: x | G142: =SUM(G137:G141) -> 7 | H142: x | I142: =SUM(I137:I141) -> 13979.8 | J142: 13279.4 | K142: 9036.3 | L142: 602 | M142: 22847740.88 | N142: x | O142: x | P142: =M142-'2020 Раздел 2'!C96-'2021 Раздел 3'!C89-'2022 Раздел 4'!C65 -> 0 | Q142: =#REF!-'2020 Раздел 2'!C96 -> 
A143: Сланцевский муниципальный район
A144: Муниципальное образование Сланцевское городское поселение
A145: =A141+1 -> 78 | B145: Г. Сланцы, ул. Гагарина, д. 5а | C145: 1988 | E145: кирпич | F145: 9 | G145: 1 | H145: 1 | I145: 2733.7 | J145: 2080.4 | K145: 1918.33 | L145: 108 | M145: =SUMIF('2020 Раздел 2'!B:B,B145,'2020 Раздел 2'!C:C)+SUMIF('2021 Раздел 3'!B:B,B145,'2021 Раздел 3'!C:C)+SUMIF('2022 Раздел 4'!B:B,B145,'2022 Раздел 4'!C:C) -> 3746636.46 | N145: 2022-12-30 | O145: РО | Q145: =#REF!-'2020 Раздел 2'!C99 -> 
A146: Итого по муниципальному образованию | C146: x | D146: x | E146: x | F146: x | G146: =SUM(G145:G145) -> 1 | H146: x | I146: =SUM(I145:I145) -> 2733.7 | J146: 2080.4 | K146: 1918.33 | L146: 108 | M146: 3746636.46 | N146: x | O146: x | Q146: =#REF!-'2020 Раздел 2'!C100 -> 
A147: Итого по Сланцевскому муниципальному району | C147: x | D147: x | E147: x | F147: x | G147: =G146 -> 1 | H147: x | I147: =SUM(I146) -> 2733.7 | J147: =SUM(J146) -> 2080.4 | K147: =SUM(K146) -> 1918.33 | L147: =SUM(L146) -> 108 | M147: =M146 -> 3746636.46 | N147: x | O147: x | P147: =M147-'2020 Раздел 2'!C101 -> 0 | Q147: =#REF!-'2020 Раздел 2'!C101 -> 
A148: Тихвинский муниципальный район
A149: Муниципальное образование Тихвинское городское поселение
A150: =A145+1 -> 79 | B150: Г. Тихвин, микрорайон 1а, д. 45 | C150: 1995 | E150: панель | F150: 9 | G150: 2 | H150: 2 | I150: 5566.2 | J150: 4027.8 | K150: 2440.9 | L150: 423 | M150: =SUMIF('2020 Раздел 2'!B:B,B150,'2020 Раздел 2'!C:C)+SUMIF('2021 Раздел 3'!B:B,B150,'2021 Раздел 3'!C:C)+SUMIF('2022 Раздел 4'!B:B,B150,'2022 Раздел 4'!C:C) -> 5433061.95 | N150: 2022-12-30 | O150: РО
A151: =A150+1 -> 80 | B151: Г. Тихвин, ул. Советская, д. 1 | C151: 1994 | E151: панель | F151: 10 | G151: 2 | H151: 2 | I151: 3864 | J151: 4108.5 | K151: 2258.7 | L151: 360 | M151: =SUMIF('2020 Раздел 2'!B:B,B151,'2020 Раздел 2'!C:C)+SUMIF('2021 Раздел 3'!B:B,B151,'2021 Раздел 3'!C:C)+SUMIF('2022 Раздел 4'!B:B,B151,'2022 Раздел 4'!C:C) -> 5459425.35 | N151: 2022-12-30 | O151: РО
A152: =A151+1 -> 81 | B152: Г. Тихвин, ул. Машиностроителей, д.46 | C152: 1988 | E152: панель | F152: 9 | G152: 5 | H152: 5 | I152: 14841.1 | J152: 10091.3 | K152: 8441.6 | L152: 521 | M152: =SUMIF('2020 Раздел 2'!B:B,B152,'2020 Раздел 2'!C:C)+SUMIF('2021 Раздел 3'!B:B,B152,'2021 Раздел 3'!C:C)+SUMIF('2022 Раздел 4'!B:B,B152,'2022 Раздел 4'!C:C) -> 13191577.3 | N152: 2022-12-30 | O152: РО
A153: Итого по муниципальному образованию | C153: x | D153: x | E153: x | F153: x | G153: =SUM(G150:G152) -> 9 | H153: x | I153: =SUM(I150:I152) -> 24271.3 | J153: =SUM(J150:J152) -> 18227.6 | K153: 13141.2 | L153: 1304 | M153: 24084064.6 | N153: x | O153: x
A154: Итого по Тихвинскому муниципальному району | C154: x | D154: x | E154: x | F154: x | G154: =G153 -> 9 | H154: x | I154: =SUM(I153) -> 24271.3 | J154: =SUM(J153) -> 18227.6 | K154: 13141.2 | L154: 1304 | M154: 24084064.6 | N154: x | O154: x | P154: =M154-'2020 Раздел 2'!C108-'2021 Раздел 3'!C93 -> 0
A155: Тосненский район
A156: Муниципальное образование Тосненское городское поселение
A157: =A152+1 -> 82 | B157: Г. Тосно, ул. М. Горького, д. 8а | G157: 2 | M157: =SUMIF('2020 Раздел 2'!B:B,B157,'2020 Раздел 2'!C:C)+SUMIF('2021 Раздел 3'!B:B,B157,'2021 Раздел 3'!C:C)+SUMIF('2022 Раздел 4'!B:B,B157,'2022 Раздел 4'!C:C) -> 5276630.92 | N157: 2022-12-30 | O157: РО
A158: =A157+1 -> 83 | B158: Г. Тосно, пр. Ленина, д. 19 | G158: 4 | M158: =SUMIF('2020 Раздел 2'!B:B,B158,'2020 Раздел 2'!C:C)+SUMIF('2021 Раздел 3'!B:B,B158,'2021 Раздел 3'!C:C)+SUMIF('2022 Раздел 4'!B:B,B158,'2022 Раздел 4'!C:C) -> 10553261.84 | N158: 2022-12-30 | O158: РО
A159: =A158+1 -> 84 | B159: Г. Тосно, ул. Блинникова, д. 8 | C159: 1992 | E159: блочный | F159: 10 | G159: 5 | H159: 5 | I159: 13870.11 | J159: 11140.91 | K159: 10245.25 | L159: 576 | M159: =SUMIF('2020 Раздел 2'!B:B,B159,'2020 Раздел 2'!C:C)+SUMIF('2021 Раздел 3'!B:B,B159,'2021 Раздел 3'!C:C)+SUMIF('2022 Раздел 4'!B:B,B159,'2022 Раздел 4'!C:C) -> 14136755.1 | N159: 2022-12-30 | O159: РО
A160: 85 | B160: Г. Тосно, пр. Ленина, д. 69 | C160: 1992 | E160: кирпич | F160: 12 | G160: 2 | H160: 1 | I160: 6362.55 | J160: 4689.25 | K160: 4205.35 | L160: 195 | M160: =SUMIF('2020 Раздел 2'!B:B,B160,'2020 Раздел 2'!C:C)+SUMIF('2021 Раздел 3'!B:B,B160,'2021 Раздел 3'!C:C)+SUMIF('2022 Раздел 4'!B:B,B160,'2022 Раздел 4'!C:C) -> 6019345.6 | N160: 2022-12-30 | O160: РО
A161: Итого по муниципальному образованию | C161: x | D161: x | E161: x | F161: x | G161: =SUM(G157:G160) -> 13 | H161: x | I161: =SUM(I157:I160) -> 20232.66 | J161: 15830.16 | K161: 14450.6 | L161: 771 | M161: 35985993.46 | N161: x | O161: x
A162: Итого по Тосненскому району | C162: x | D162: x | E162: x | F162: x | G162: =G161 -> 13 | H162: x | I162: =SUM(I161) -> 20232.66 | J162: =SUM(J161) -> 15830.16 | K162: =SUM(K161) -> 14450.6 | L162: =SUM(L161) -> 771 | M162: =M161 -> 35985993.46 | N162: x | O162: x | P162: =M162-'2020 Раздел 2'!C114-'2021 Раздел 3'!C100 -> 20156100.7
A163: ИТОГО по Ленинградской области | C163: x | D163: x | E163: x | F163: x | G163: =G162+G154+G147+G142+G134+G122+G117+G103+G84+G72+G47+G21 -> 164 | H163: х | I163: =I162+I154+I147+I142+I134+I122+I117+I103+I84+I72+I47+I21 -> 476649.66 | J163: 409675.72 | K163: 331584.27 | L163: 15632.6 | M163: 462485902.6 | N163: x | O163: x | P163: =M163-'2020 Раздел 2'!C115-'2021 Раздел 3'!C101-'2022 Раздел 4'!C71 -> 0
A164: Осуществление строительного контроля | C164: x | D164: x | E164: x | F164: x | G164: x | H164: x | I164: x | J164: x | K164: x | L164: x | M164: ='2020 Раздел 2'!C116+'2021 Раздел 3'!C102+'2022 Раздел 4'!C72 -> 9204801.661 | N164: х | O164: х
A165: Итого по Ленинградской области со строительным контролем | C165: x | D165: x | E165: x | F165: x | G165: x | H165: x | I165: x | J165: x | K165: x | L165: x | M165: =M163+M164 -> 471690704.3 | N165: х | O165: х | P165: =M165-'2020 Раздел 2'!C117-'2021 Раздел 3'!C103-'2022 Раздел 4'!C73 -> 0
O893: =#REF!+#REF!+#REF!+#REF!+#REF!+#REF! -> 

Sheet 2020 Раздел 2
A1: Раздел II. Перечень многоквартирных домов, в которых будет проводиться капитальный ремонт лифтового оборудования в 2020 году, за счет средств собственников, формирующих фонд капитального ремонта на счетах регионального оператора
A2: № п\п | B2: Адрес МКД | C2: Стоимость капитального ремонта ВСЕГО | D2: Ремонт или замена лифтового оборудования | F2: ТО | G2: Проектные работы
C3: руб. | D3: ед. | E3: руб | F3: руб. | G3: руб.
A4: 1 | B4: 2 | C4: 3 | D4: 4 | E4: 5 | F4: 6 | G4: 7
A5: Всеволожский муниципальный район
A6: Муниципальное образование Город Всеволожск
A7: 1 | B7: Г. Всеволожск, ул. Александровская, д. 81, корп. 3 | C7: =E7+F7+G7 -> 260000 | G7: 260000 | H7: 260000
A8: =A7+1 -> 2 | B8: Г. Всеволожск, ул. Балашова, д. 8/3 | C8: =E8+F8+G8 -> 260000 | G8: 260000
A9: =A8+1 -> 3 | B9: Г. Всеволожск, ул. Василеозерская, д. 5 | C9: =E9+F9+G9 -> 260000 | G9: 260000
A10: =A9+1 -> 4 | B10: Г. Всеволожск, ул. Ленинградская, д. 24/84 | C10: =E10+F10+G10 -> 100750 | G10: 100750
A11: Итого по муниципальному образованию | C11: =SUM(C7:C10) -> 880750 | D11: =SUM(D7:D10) -> 0 | E11: =SUM(E7:E10) -> 0 | F11: =SUM(F7:F10) -> 0 | G11: =SUM(G7:G10) -> 880750
A12: Муниципальное образование Муринское городское поселение
A13: =A10+1 -> 5 | B13: г. Мурино, ул. Оборонная, д. 12 | C13: =E13+F13+G13 -> 260000 | G13: 260000
A14: =A13+1 -> 6 | B14: г. Мурино, ул. Оборонная, д. 24 | C14: =E14+F14+G14 -> 390000 | G14: =130000*3 -> 390000
A15: =A14+1 -> 7 | B15: г. Мурино, ул. Оборонная, д. 22 | C15: =E15+F15+G15 -> 130000 | G15: 130000
A16: Итого по муниципальному образованию | C16: =SUM(C13:C15) -> 780000 | D16: =SUM(D13:D15) -> 0 | E16: =SUM(E13:E15) -> 0 | F16: =SUM(F13:F15) -> 0 | G16: =SUM(G13:G15) -> 780000
A17: Муниципальное образование Свердловское городское поселение
A18: =A15+1 -> 8 | B18: Пос. им. Свердлова, микрорайон 1, д. 8 | C18: =E18+F18+G18 -> 520000 | G18: 520000
A19: Итого по муниципальному образованию | C19: =C18 -> 520000 | D19: =D18 -> 0 | E19: =E18 -> 0 | F19: =F18 -> 0 | G19: =G18 -> 520000
A20: Муниципальное образование Сертолово
A21: =A18+1 -> 9 | B21: Г. Сертолово, микрорайон Сертолово-1, ул. Молодежная, д. 8, корп. 2 | C21: =E21+F21+G21 -> 390000 | G21: 390000
A22: =A21+1 -> 10 | B22: Г. Сертолово, микрорайон Сертолово-1, ул. Центральная, д. 6, корп. 1 | C22: =E22+F22+G22 -> 8667924.47 | D22: 3 | E22: =SUM([1]субсидия!$C$166:$C$168) -> 8057534.09 | F22: 220390.38 | G22: 390000
A23: =A22+1 -> 11 | B23: Г. Сертолово, микрорайон Сертолово-1, ул. Центральная, д. 7, корп. 1 | C23: =E23+F23+G23 -> 8680076.04 | D23: 3 | E23: =SUM([1]субсидия!$C$169:$C$171) -> 8069685.66 | F23: 220390.38 | G23: =D23*130000 -> 390000
A24: Итого по муниципальному образованию | C24: =SUM(C21:C23) -> 17738000.51 | D24: =SUM(D21:D23) -> 6 | E24: =SUM(E21:E23) -> 16127219.75 | F24: =SUM(F21:F23) -> 440780.76 | G24: =SUM(G21:G23) -> 1170000
A25: Итого по Всеволожскому муниципальному району | C25: =C24+C16+C11+C19 -> 19918750.51 | D25: =D24+D16+D11+D19 -> 6 | E25: =E24+E16+E11+E19 -> 16127219.75 | F25: =F24+F16+F11+F19 -> 440780.76 | G25: =G24+G16+G11+G19 -> 3350750
A26: Выборгский район
A27: Муниципальное образование Город Выборг
A28: =A23+1 -> 12 | B28: Г. Выборг, бул. Кутузова, д. 33 | C28: =E28+F28+G28 -> 2546289.69 | D28: 1 | E28: =[1]субсидия!$C$295 -> 2362913.11 | F28: 53376.58 | G28: 130000
A29: =A28+1 -> 13 | B29: Г. Выборг, просп. Победы, д. 8 | C29: 2453855.13 | D29: 1 | E29: =[1]субсидия!$C$287 -> 2262874.14 | F29: 60980.99 | G29: 130000
A30: 14 | B30: Г. Выборг, просп. Победы, д. 12 | C30: 520000 | G30: 520000
A31: 15 | B31: Г. Выборг, ул. Гагарина, д. 29 | C31: 11629909.38 | D31: 3 | E31: 11019519 | F31: 220390.38 | G31: 390000
A32: 16 | B32: Г. Выборг, ул. Гагарина, д. 65 | C32: 2453784.56 | D32: 1 | E32: =[1]субсидия!$C$290 -> 2262803.57 | F32: 60980.99 | G32: 130000
A33: 17 | B33: Г. Выборг, ул. Крепостная, д. 39а | C33: 3876636.46 | D33: 1 | E33: 3673173 | F33: =E33*0.02 -> 73463.46 | G33: =D33*130000 -> 130000
A34: 18 | B34: Г. Выборг, ул. Офицерская, д. 12 | C34: 2499849.44 | D34: 1 | E34: =[1]субсидия!$C$293 -> 2305066.22 | F34: 64783.22 | G34: =D34*130000 -> 130000
A35: 19 | B35: Г. Выборг, ул. Офицерская, д. 14 | C35: 2502256.98 | D35: 1 | E35: =[1]субсидия!$C$294 -> 2307473.76 | F35: 64783.22 | G35: =D35*130000 -> 130000
A36: Итого по муниципальному образованию | C36: =SUM(C28:C35) -> 28482581.64 | D36: =SUM(D28:D35) -> 9 | E36: =SUM(E28:E35) -> 26193822.8 | F36: =SUM(F28:F35) -> 598758.84 | G36: =SUM(G28:G35) -> 1690000
A37: Муниципальное образование Светогорское городское поселение
A38: =A35+1 -> 20 | B38: Г. Светогорск, ул. Красноармейская, д. 26 | C38: =E38+F38+G38 -> 8324810.25 | D38: 3 | E38: 8126680.65 | F38: 198129.6 | G38: 0
A39: =A38+1 -> 21 | B39: Г. Светогорск, ул. Красноармейская, д. 32 | C39: =E39+F39+G39 -> 9594930.01 | D39: 5 | E39: 8782541.66 | F39: 322288.35 | G39: 490100
A40: =A39+1 -> 22 | B40: Г. Светогорск, ул. Красноармейская, д. 8 | C40: =E40+F40+G40 -> 7759701.1 | D40: 3 | E40: =SUM([1]субсидия!$C$296:$C$298) -> 7170098.2 | F40: =66534.3+66534.3+66534.3 -> 199602.9 | G40: =D40*130000 -> 390000
A41: Итого по муниципальному образованию | C41: =SUM(C38:C40) -> 25679441.36 | D41: =SUM(D38:D40) -> 11 | E41: =SUM(E38:E40) -> 24079320.51 | F41: =SUM(F38:F40) -> 720020.85 | G41: =SUM(G38:G40) -> 880100
A42: Муниципальное образование Советское городское поселение
A43: =A40+1 -> 23 | B43: Г.п. Советский, ул. Садовая, д. 46 | C43: =E43+F43+G43 -> 2381097.22 | D43: 1 | E43: 2313231.88 | F43: 67865.34
A44: Итого по муниципальному образованию | C44: =SUM(C43) -> 2381097.22 | D44: =SUM(D43) -> 1 | E44: =SUM(E43) -> 2313231.88 | F44: =SUM(F43) -> 67865.34 | G44: =SUM(G43) -> 0
A45: Итого по Выборгскому району | C45: =C41+C36+C44 -> 56543120.22 | D45: =D41+D36+D44 -> 21 | E45: =E41+E36+E44 -> 52586375.19 | F45: =F41+F36+F44 -> 1386645.03 | G45: =G41+G36+G44 -> 2570100
A46: Гатчинский муниципальный район
A47: Муниципальное образование Город Гатчина
A48: =A43+1 -> 24 | B48: Г. Гатчина, ул. Красных Военлётов, д. 9 | C48: =E48+F48+G48 -> 520000 | G48: =4*130000 -> 520000
A49: =A48+1 -> 25 | B49: Г. Гатчина, ул. Рощинская, д. 19 | C49: =E49+F49+G49 -> 15506545.84 | D49: 4 | E49: 14692692 | F49: 293853.84 | G49: =D49*130000 -> 520000
A50: =A49+1 -> 26 | B50: Г. Гатчина, ул. Рощинская, д. 9Г | C50: =E50+F50+G50 -> 7753272.92 | D50: 2 | E50: 7346346 | F50: 146926.92 | G50: =D50*130000 -> 260000
A51: =A50+1 -> 27 | B51: Г. Гатчина, ул. Хохлова, д. 2 | C51: =E51+F51+G51 -> 390000 | G51: 390000
A52: Итого по муниципальному образованию | C52: =SUM(C48:C51) -> 24169818.76 | D52: =SUM(D48:D51) -> 6 | E52: =SUM(E48:E51) -> 22039038 | F52: =SUM(F48:F51) -> 440780.76 | G52: =SUM(G48:G51) -> 1690000
A53: Итого по Гатчинскому муниципальному району | C53: =C52 -> 24169818.76 | D53: =D52 -> 6 | E53: =E52 -> 22039038 | F53: =F52 -> 440780.76 | G53: =G52 -> 1690000
A54: Киришский муниципальный район
A55: Муниципальное образование Киришское городское поселение
A56: =A51+1 -> 28 | B56: Г. Кириши, бул. Плавницкий, д. 16 | C56: =E56+F56+G56 -> 2803026.64 | D56: 1 | E56: =[1]субсидия!$C$322 -> 2599563.18 | F56: 73463.46 | G56: =D56*130000 -> 130000
A57: =A56+1 -> 29 | B57: Г. Кириши, пер. Березовый, д. 10 | C57: 130000 | G57: 130000
A58: 30 | B58: Г. Кириши, просп. Героев, д. 15 | C58: 2802614.46 | D58: 1 | E58: =[1]субсидия!$C$323 -> 2599151 | F58: 73463.46 | G58: =D58*130000 -> 130000
A59: 31 | B59: Г. Кириши, просп. Героев, д. 17 | C59: 5567978.94 | D59: 2 | E59: =SUM([1]субсидия!$C$324:$C$325) -> 5161052.02 | F59: 146926.92 | G59: 260000
A60: 32 | B60: Г. Кириши, ул. Декабристов Бестужевых, д. 16 | C60: 2803590.77 | D60: 1 | E60: =[1]субсидия!$C$326 -> 2600127.31 | F60: 73463.46 | G60: 130000
A61: 33 | B61: Г. Кириши, ул. Строителей, д. 28 | C61: 2803316.73 | D61: 1 | E61: =[1]субсидия!$C$327 -> 2599853.27 | F61: 73463.46 | G61: 130000
A62: 34 | B62: Г. Кириши, ул. Строителей, д. 30 | C62: 8449707.67 | D62: 3 | E62: =SUM([1]субсидия!$C$328:$C$330) -> 7839317.29 | F62: 220390.38 | G62: 390000
A63: 35 | B63: Г. Кириши, ул. Строителей, д. 46 | C63: 11264437.79 | D63: 4 | E63: =SUM([1]субсидия!$C$331:$C$334) -> 10450583.95 | F63: 293853.84 | G63: 520000
A64: =A63+1 -> 36 | B64: Г. Кириши, ул. Энергетиков, д. 40 | C64: 2803602.38 | D64: 1 | E64: =[1]субсидия!$C$335 -> 2600138.92 | F64: 73463.46 | G64: 130000
A65: Итого по муниципальному образованию | C65: =SUM(C56:C64) -> 39428275.38 | D65: =SUM(D56:D64) -> 14 | E65: =SUM(E56:E64) -> 36449786.94 | F65: =SUM(F56:F64) -> 1028488.44 | G65: =SUM(G56:G64) -> 1950000
A66: Итого по Киришскому муниципальному району | C66: =C65 -> 39428275.38 | D66: =D65 -> 14 | E66: =E65 -> 36449786.94 | F66: =F65 -> 1028488.44 | G66: =G65 -> 1950000
A67: Кировский муниципальный район
A68: Муниципальное образование Кировское городское поселение
A69: =A64+1 -> 37 | B69: Г. Кировск, ул. Молодежная, д. 3 | C69: =E69+F69+G69 -> 130000 | G69: 130000
A70: =A69+1 -> 38 | B70: Г. Кировск, ул. Молодежная, д. 5 | C70: =E70+F70+G70 -> 130000 | G70: 130000
A71: Итого по муниципальному образованию | C71: =SUM(C69:C70) -> 260000 | D71: =SUM(D69:D70) -> 0 | E71: =SUM(E69:E70) -> 0 | F71: =SUM(F69:F70) -> 0 | G71: =SUM(G69:G70) -> 260000
A72: Муниципальное образование Отрадненское городское поселение
A73: =A70+1 -> 39 | B73: Г. Отрадное, ул. Железнодорожная, д. 13 | C73: =E73+F73+G73 -> 260000 | G73: 260000
A74: =A73+1 -> 40 | B74: Г. Отрадное, ул. Зарубина, д. 15 | C74: =E74+F74+G74 -> 130000 | G74: 130000
A75: =A74+1 -> 41 | B75: Г. Отрадное, ул. Лесная, д. 10 | C75: =E75+F75+G75 -> 780000 | G75: 780000
A76: =A75+1 -> 42 | B76: Г. Отрадное, ул. Центральная,д.17 | C76: =E76+F76+G76 -> 520000 | G76: 520000
A77: =A76+1 -> 43 | B77: Г. Отрадное, ул. Щурова, д.4 | C77: =E77+F77+G77 -> 260000 | G77: 260000
A78: Итого по муниципальному образованию | C78: =SUM(C73:C77) -> 1950000 | D78: =SUM(D73:D77) -> 0 | E78: =SUM(E73:E77) -> 0 | F78: =SUM(F73:F77) -> 0 | G78: =SUM(G73:G77) -> 1950000
A79: Итого по Кировскому муниципальному району | C79: =+C78+C71 -> 2210000 | D79: =+D78+D71 -> 0 | E79: =+E78+E71 -> 0 | F79: =+F78+F71 -> 0 | G79: =+G78+G71 -> 2210000
A80: Лужский муниципальный район
A81: Муниципальное образование Лужское городское поселение
A82: =A77+1 -> 44 | B82: Г. Луга, просп. Володарского, д. 26 | C82: =E82+F82+G82 -> 7140000 | D82: 2 | E82: 7000000 | F82: 140000
A83: =A82+1 -> 45 | B83: Г. Луга, ул. Миккели, д. 1, кор. 1 | C83: 3876636.46 | D83: 1 | E83: 3673173 | F83: 73463.46 | G83: =D83*130000 -> 130000
A84: 46 | B84: Г. Луга, ул. Миккели, д. 1, кор. 3 | C84: 3876636.46 | D84: 1 | E84: 3673173 | F84: 73463.46 | G84: =D84*130000 -> 130000
A85: 47 | B85: Г. Луга, ул. Победы, д. 4 | C85: 3570000 | D85: 1 | E85: 3500000 | F85: 70000
A86: 48 | B86: Г. Луга, ул. Победы, д. 7 | C86: 3700000 | D86: 1 | E86: 3500000 | F86: 70000 | G86: =D86*130000 -> 130000
A87: 49 | B87: Г. Луга, просп. Урицкого, д. 101 | C87: 130000 | G87: 130000
A88: 50 | B88: Г. Луга, просп. Урицкого, д. 99 | C88: 130000 | G88: 130000
A89: Итого по муниципальному образованию | C89: =SUM(C82:C88) -> 22423272.92 | D89: =SUM(D82:D88) -> 6 | E89: 21346346 | F89: 426926.92 | G89: =SUM(G82:G88) -> 650000
A90: Итого по Лужскому муниципальному району | C90: =C89 -> 22423272.92 | D90: =D89 -> 6 | E90: =E89 -> 21346346 | F90: =F89 -> 426926.92 | G90: =G89 -> 650000
A91: Сосновоборский городской округ
A92: Муниципальное образование Сосновоборский городской округ
A93: =A88+1 -> 51 | B93: Г. Сосновый Бор, ул. Молодежная, д. 26 | C93: =E93+F93+G93 -> 7594407.96 | D93: 2 | E93: =D93*3641478+162542 -> 7445498 | F93: =E93*0.02 -> 148909.96
A94: =A93+1 -> 52 | B94: Г. Сосновый Бор, ул. Сибирская, д. 5 | C94: =E94+F94+G94 -> 3880100.4 | D94: 1 | E94: 3804020 | F94: 76080.4
A95: =A94+1 -> 53 | B95: Г. Сосновый Бор, ул. Солнечная, д. 30 | C95: =E95+F95+G95 -> 5901813.6 | D95: 2 | E95: 5753330.4 | F95: 148483.2
A96: Итого по муниципальному образованию | C96: =SUM(C93:C95) -> 17376321.96 | D96: =SUM(D93:D95) -> 5 | E96: =SUM(E93:E95) -> 17002848.4 | F96: =SUM(F93:F95) -> 373473.56 | G96: =SUM(G93:G95) -> 0
A97: Сланцевский муниципальный район
A98: Муниципальное образование Сланцевское городское поселение
A99: =A95+1 -> 54 | B99: Г. Сланцы, ул. Гагарина, д. 5а | C99: =E99+F99+G99 -> 3746636.46 | D99: 1 | E99: 3673173 | F99: 73463.46
A100: Итого по муниципальному образованию | C100: =SUM(C99:C99) -> 3746636.46 | D100: =SUM(D99:D99) -> 1 | E100: =SUM(E99:E99) -> 3673173 | F100: =SUM(F99:F99) -> 73463.46 | G100: =SUM(G99:G99) -> 0
A101: Итого по Сланцевскому муниципальному району | C101: =C100 -> 3746636.46 | D101: =D100 -> 1 | E101: =E100 -> 3673173 | F101: =F100 -> 73463.46 | G101: =G100 -> 0
A102: Тихвинский муниципальный район
A103: Муниципальное образование Тихвинское городское поселение
A104: =A99+1 -> 55 | B104: Г. Тихвин, микрорайон 1а, д. 45 | C104: =E104+F104+G104 -> 5433061.95 | D104: 2 | E104: =SUM([1]субсидия!$C$317:$C$318) -> 5026135.03 | F104: 146926.92 | G104: =D104*130000 -> 260000
A105: =A104+1 -> 56 | B105: Г. Тихвин, ул. Машиностроителей, д.46 | C105: =E105+F105+G105 -> 650000 | G105: 650000
A106: =A105+1 -> 57 | B106: Г. Тихвин, ул. Советская, д. 1 | C106: =E106+F106+G106 -> 5459425.35 | D106: 2 | E106: =SUM([1]субсидия!$C$319:$C$320) -> 5052498.43 | F106: 146926.92 | G106: =D106*130000 -> 260000
A107: Итого по муниципальному образованию | C107: =SUM(C104:C106) -> 11542487.3 | D107: =SUM(D104:D106) -> 4 | E107: =SUM(E104:E106) -> 10078633.46 | F107: =SUM(F104:F106) -> 293853.84 | G107: =SUM(G104:G106) -> 1170000
A108: Итого по Тихвинскому муниципальному району | C108: =C107 -> 11542487.3 | D108: =D107 -> 4 | E108: =E107 -> 10078633.46 | F108: =F107 -> 293853.84 | G108: =G107 -> 1170000
A109: Тосненский район
A110: Муниципальное образование Тосненское городское поселение
A111: =A106+1 -> 58 | B111: Г. Тосно, ул. М. Горького, д. 8а | C111: =E111+F111+G111 -> 260000 | G111: 260000
A112: =A111+1 -> 59 | B112: Г. Тосно, пр. Ленина, д. 19 | C112: =E112+F112+G112 -> 520000 | G112: =130000*4 -> 520000
A113: Итого по муниципальному образованию | C113: =SUM(C111:C112) -> 780000 | D113: =SUM(D111:D112) -> 0 | E113: =SUM(E111:E112) -> 0 | F113: =SUM(F111:F112) -> 0 | G113: =SUM(G111:G112) -> 780000
A114: Итого по Тосненскому району | C114: =C113 -> 780000 | D114: =D113 -> 0 | E114: =E113 -> 0 | F114: =F113 -> 0 | G114: =G113 -> 780000
A115: ИТОГО по Ленинградской области | C115: =C114+C108+C101+C96+C90+C79+C66+C53+C45+C25 -> 198138683.5 | D115: =D114+D108+D101+D96+D90+D79+D66+D53+D45+D25 -> 63 | E115: =E114+E108+E101+E96+E90+E79+E66+E53+E45+E25 -> 179303420.7 | F115: =F114+F108+F101+F96+F90+F79+F66+F53+F45+F25 -> 4464412.77 | G115: =G114+G108+G101+G96+G90+G79+G66+G53+G45+G25 -> 14370850
A116: Осуществление строительного контроля | C116: =(C115-F115-G115)*0.0214 -> 3837093.204
A117: Итого по Ленинградской области со строительным контролем | C117: =C115+C116 -> 201975776.7
G191: =SUM(G178:G190) -> 0
G214: =SUM(G196:G213) -> 0
G225: =SUM(G219:G224) -> 0
G233: =SUM(G227:G232) -> 0
G239: =SUM(G235:G237) -> 0
G240: =G191+G214+G225+G239+G233+G217 -> 0
G247: =SUM(G243:G246) -> 0
G311: =SUM(G252:G310) -> 0
G318: =SUM(G317) -> 0
G325: =G247+G311+G318 -> 0
G340: =SUM(G328:G339) -> 0
G345: =SUM(G342:G344) -> 0
G346: =G340+G345 -> 0
G376: =SUM(G349:G375) -> 0
G381: =SUM(G378:G380) -> 0
G385: =SUM(G383:G384) -> 0
G386: =G376+G385+G381 -> 0
G413: =SUM(G389:G412) -> 0
G430: =SUM(G415:G429) -> 0
G437: =SUM(G432:G436) -> 0
G440: =SUM(G439:G439) -> 0
G448: =SUM(G442:G447) -> 0
G456: =SUM(G450:G455) -> 0
G457: =#REF!+#REF!+#REF!+#REF!+#REF!+F457+#REF!+#REF!+#REF!+#REF!+#REF!+#REF!+#REF!+#REF! -> 
G458: =#REF!+#REF!+#REF!+#REF!+#REF!+F458+#REF!+#REF!+#REF!+#REF!+#REF!+#REF!+#REF!+#REF! -> 
G459: =#REF!+#REF!+#REF!+#REF!+#REF!+F459+#REF!+#REF!+#REF!+#REF!+#REF!+#REF!+#REF!+#REF! -> 
G460: =#REF!+#REF!+#REF!+#REF!+#REF!+F460+#REF!+#REF!+#REF!+#REF!+#REF!+#REF!+#REF!+#REF! -> 
G461: =#REF!+#REF!+#REF!+#REF!+#REF!+F461+#REF!+#REF!+#REF!+#REF!+#REF!+#REF!+#REF!+#REF! -> 
G487: =SUM(G463:G486) -> 0
G488: =SUM(G487+G456+G448+G440+G437+G430+G413) -> 0
G524: =SUM(G491:G523) -> 0
G525: =G524 -> 0
G534: =SUM(G528:G531) -> 0
G537: =SUM(G536:G536) -> 0
G542: =SUM(G539:G541) -> 0
G548: =SUM(G544:G547) -> 0
G554: =SUM(G550:G553) -> 0
G558: =SUM(G556:G557) -> 0
G564: =SUM(G560:G563) -> 0
G565: =G542+G534+G537+G564+G558+G548+G554 -> 0
G570: =SUM(G568:G569) -> 0
G593: =SUM(G584:G592) -> 0
G597: =SUM(G595:G596) -> 0
G600: =SUM(G599:G599) -> 0
G609: =SUM(G602:G608) -> 0
G617: =SUM(G611:G616) -> 0
G620: =SUM(G619:G619) -> 0
G623: =SUM(G622) -> 0
G630: =G570+G593+G597+G600+G609+G617+G620+G623+G629 -> 0
G641: =SUM(G633:G640) -> 0
G642: =G641 -> 0
G650: =SUM(G645:G649) -> 0
G656: =SUM(G652:G655) -> 0
G661: =SUM(G658:G660) -> 0
G667: =SUM(G663:G666) -> 0
G671: =SUM(G669:G670) -> 0
G679: =G677+G678 -> 0
G680: =G650+G656+G661+G667+G671 -> 0
G684: =SUM(G683:G683) -> 0
G687: =SUM(G686) -> 0
G725: =SUM(G689:G724) -> 0
G726: =G725+G687+G684 -> 0
G847: =SUM(G728:G846) -> 0
G959: =SUM(G855:G958) -> 0
G979: =SUM(G961:G978) -> 0
G980: =G959+G979 -> 0
G984: =SUM(G983:G983) -> 0
G992: =SUM(G986:G991) -> 0
G995: =SUM(G994:G994) -> 0
G1015: =SUM(G997:G1014) -> 0
G1018: =SUM(G1017:G1017) -> 0
G1021: =SUM(G1020) -> 0
G1022: =G992+G995+G1018+G1015+G984+G1021 -> 0

Sheet 2021 Раздел 3
A1: Раздел III. Перечень многоквартирных домов, в которых будет проводиться капитальный ремонт лифтового оборудования в 2021 году, за счет средств собственников, формирующих фонд капитального ремонта на счетах регионального оператора
A2: № п\п | B2: Адрес МКД | C2: Стоимость капитального ремонта ВСЕГО | D2: Ремонт или замена лифтового оборудования | F2: ТО | G2: Проектные работы
C3: руб. | D3: ед. | E3: руб | F3: руб. | G3: руб.
A4: 1 | B4: 2 | C4: 3 | D4: 4 | E4: 5 | F4: 6 | G4: 7
A5: Волховский муниципальный район
A6: Муниципальное образование Город Волхов
A7: 1 | B7: Г. Волхов, просп. Волховский, д. 57 | C7: =E7+F7+G7 -> 130000 | G7: 130000
A8: Итого по муниципальному образованию | C8: =SUM(C7:C7) -> 130000 | G8: =SUM(G7:G7) -> 130000
A9: Итого по Волховскому муниципальному району | C9: =C8 -> 130000 | G9: =G8 -> 130000
A10: Всеволожский муниципальный район
A11: Муниципальное образование Город Всеволожск
A12: =A7+1 -> 2 | B12: Г. Всеволожск, ул. Александровская, д. 81, корп. 3 | C12: =E12+F12+G12 -> 5016630.92 | D12: 2 | E12: =2434852*D12 -> 4869704 | F12: 146926.92
A13: =A12+1 -> 3 | B13: Г. Всеволожск, ул. Балашова, д. 8/3 | C13: 5016630.92 | D13: 2 | E13: =2434852*D13 -> 4869704 | F13: 146926.92
A14: 4 | B14: Г. Всеволожск, ул. Василеозерская, д. 5 | C14: 5016630.92 | D14: 2 | E14: =2434852*D14 -> 4869704 | F14: 146926.92
A15: 5 | B15: Г. Всеволожск, ул. Василеозерская, д. 7 | C15: 260000 | G15: 260000
A16: 6 | B16: Г. Всеволожск, ул. Ленинградская, д. 30, корп. 1 | C16: 130000 | G16: 130000
A17: 7 | B17: Г. Всеволожск, ул. Ленинградская, д. 24/84 | C17: 12500612 | D17: 5 | E17: 12174260 | F17: 326352
A18: Итого по муниципальному образованию | C18: =SUM(C12:C17) -> 27940504.76 | D18: =SUM(D12:D17) -> 11 | E18: =SUM(E12:E17) -> 26783372 | F18: =SUM(F12:F17) -> 767132.76 | G18: =SUM(G12:G17) -> 390000
A19: Муниципальное образование Муринское городское поселение
A20: =A17+1 -> 8 | B20: г. Мурино, ул. Оборонная, д. 12 | C20: =E20+F20+G20 -> 5016630.92 | D20: 2 | E20: =2434852*D20 -> 4869704 | F20: =73463.46*D20 -> 146926.92
A21: =A20+1 -> 9 | B21: г. Мурино, ул. Оборонная, д. 24 | C21: =E21+F21+G21 -> 7524946.38 | D21: 3 | E21: =2434852*D21 -> 7304556 | F21: =73463.46*D21 -> 220390.38
A22: =A21+1 -> 10 | B22: г. Мурино, ул. Оборонная, д. 22 | C22: =E22+F22+G22 -> 2508315.46 | D22: 1 | E22: =2434852*D22 -> 2434852 | F22: =73463.46*D22 -> 73463.46
A23: Итого по муниципальному образованию | C23: =SUM(C20:C22) -> 15049892.76 | D23: =SUM(D20:D22) -> 6 | E23: =SUM(E20:E22) -> 14609112 | F23: =SUM(F20:F22) -> 440780.76
A24: Муниципальное образование Свердловское городское поселение
A25: =A22+1 -> 11 | B25: Пос. им. Свердлова, микрорайон 1, д. 8 | C25: =E25+F25+G25 -> 10033261.84 | D25: 4 | E25: =2434852*D25 -> 9739408 | F25: 293853.84
A26: Итого по муниципальному образованию | C26: =SUM(C25) -> 10033261.84 | D26: =SUM(D25) -> 4 | E26: =SUM(E25) -> 9739408 | F26: =SUM(F25) -> 293853.84
A27: Муниципальное образование Сертолово
A28: =A25+1 -> 12 | B28: г.Сертолово, микрорайон Сертолово-1, ул. Ветеранов, д. № 11 корп. 2 | C28: =E28+F28+G28 -> 7907242.86 | D28: 3 | E28: 7304556 | F28: 212686.86 | G28: 390000
A29: =A28+1 -> 13 | B29: г.Сертолово, микрорайон Сертолово-1, ул.Центральная, д. 3 | C29: =E29+F29+G29 -> 8157685.86 | D29: 3 | E29: 7554999 | F29: 212686.86 | G29: 390000
A30: Итого по муниципальному образованию | C30: =SUM(C28:C29) -> 16064928.72 | D30: =SUM(D28:D29) -> 6 | E30: =SUM(E28:E29) -> 14859555 | F30: =SUM(F28:F29) -> 425373.72 | G30: =SUM(G28:G29) -> 780000
A31: Итого по Всеволожскому муниципальному району | C31: =C30+C26+C23+C18 -> 69088588.08 | D31: =D30+D26+D23+D18 -> 27 | E31: =E30+E26+E23+E18 -> 65991447 | F31: =F30+F26+F23+F18 -> 1927141.08 | G31: =G30+G26+G23+G18 -> 1170000
A32: Выборгский район
A33: Муниципальное образование Город Выборг
A34: =A29+1 -> 14 | B34: Г. Выборг, ул. Гагарина, д. 69 | C34: =E34+F34+G34 -> 260000 | G34: 260000
A35: =A34+1 -> 15 | B35: Г. Выборг, просп. Победы, д. 12 | C35: =E35+F35+G35 -> 10033261.84 | D35: 4 | E35: =2434852*D35 -> 9739408 | F35: 293853.84
A36: Итого по муниципальному образованию | C36: =SUM(C34:C35) -> 10293261.84 | D36: =SUM(D34:D35) -> 4 | E36: =SUM(E34:E35) -> 9739408 | F36: =SUM(F34:F35) -> 293853.84 | G36: =SUM(G34:G35) -> 260000
A37: Муниципальное образование Полянское сельское поселение
A38: =A35+1 -> 16 | B38: пос. Каменка, ул. Гвардейская, д. 75 | C38: =E38+F38+G38 -> 130000 | G38: 130000
A39: =A38+1 -> 17 | B39: пос. Каменка, ул. Гвардейская, д. 77 | C39: =E39+F39+G39 -> 130000 | G39: 130000
A40: Итого по муниципальному образованию | C40: =SUM(C38:C39) -> 260000 | D40: =SUM(D38:D39) -> 0 | E40: =SUM(E38:E39) -> 0 | F40: =SUM(F38:F39) -> 0 | G40: =SUM(G38:G39) -> 260000
A41: Итого по Выборгскому району | C41: =C36+C40 -> 10553261.84 | D41: =D36+D40 -> 4 | E41: =E36+E40 -> 9739408 | F41: =F36+F40 -> 293853.84 | G41: =G36+G40 -> 520000
A42: Гатчинский муниципальный район
A43: Муниципальное образование Город Гатчина
A44: =A39+1 -> 18 | B44: Г. Гатчина, просп. 25 Октября, д. 59 | C44: =E44+F44+G44 -> 390000 | G44: 390000
A45: =A44+1 -> 19 | B45: Г. Гатчина, ул. Рощинская, д. 11, кор. 1 | C45: 130000 | G45: 130000
A46: =A45+1 -> 20 | B46: Г. Гатчина, ул. Рощинская, д. 13А | C46: 260000 | G46: 260000
A47: 21 | B47: Г. Гатчина, ул. Рощинская, д. 3А | C47: 260000 | G47: 260000
A48: 22 | B48: Г. Гатчина, ул. Хохлова, д. 2 | C48: 7524946.38 | D48: 3 | E48: =2434852*D48 -> 7304556 | F48: 220390.38
A49: Итого по муниципальному образованию | C49: =SUM(C44:C48) -> 8564946.38 | D49: =SUM(D44:D48) -> 3 | E49: =SUM(E44:E48) -> 7304556 | F49: =SUM(F44:F48) -> 220390.38 | G49: =SUM(G44:G48) -> 1040000
A50: Итого по Гатчинскому муниципальному району | C50: =C49 -> 8564946.38 | D50: =D49 -> 3 | E50: =E49 -> 7304556 | F50: =F49 -> 220390.38 | G50: =G49 -> 1040000
A51: Киришский муниципальный район
A52: Муниципальное образование Киришское городское поселение
A53: =A48+1 -> 23 | B53: Г. Кириши, бул. Плавницкий, д. 36 | C53: =E53+F53+G53 -> 130000 | G53: 130000
A54: =A53+1 -> 24 | B54: Г. Кириши, пер. Березовый, д. 10 | C54: 2508315.46 | D54: 1 | E54: =2434852*D54 -> 2434852 | F54: =D54*73463.46 -> 73463.46
A55: 25 | B55: Г. Кириши, просп. Ленина, д. 40 | C55: 130000 | G55: 130000
A56: 26 | B56: Г. Кириши, просп. Ленина, д. 9 | C56: 130000 | G56: 130000
A57: 27 | B57: Г. Кириши, ул. Строителей, д. 2 | C57: 130000 | G57: 130000
A58: 28 | B58: Г. Кириши, ул. Строителей, д. 26 | C58: 130000 | G58: 130000
A59: Итого по муниципальному образованию | C59: =SUM(C53:C58) -> 3158315.46 | D59: =SUM(D53:D58) -> 1 | E59: =SUM(E53:E58) -> 2434852 | F59: =SUM(F53:F58) -> 73463.46 | G59: =SUM(G53:G58) -> 650000
A60: Итого по Киришскому муниципальному району | C60: =C59 -> 3158315.46 | D60: =D59 -> 1 | E60: =E59 -> 2434852 | F60: =F59 -> 73463.46 | G60: =G59 -> 650000
A61: Кировский муниципальный район
A62: Муниципальное образование Кировское городское поселение
A63: =A58+1 -> 29 | B63: Г. Кировск, ул. Молодежная, д. 3 | C63: =E63+F63+G63 -> 2508315.46 | D63: 1 | E63: =2434852*D63 -> 2434852 | F63: =D63*73463.46 -> 73463.46
A64: =A63+1 -> 30 | B64: Г. Кировск, ул. Молодежная, д. 5 | C64: =E64+F64+G64 -> 2508315.46 | D64: 1 | E64: =2434852*D64 -> 2434852 | F64: =D64*73463.46 -> 73463.46
A65: Итого по муниципальному образованию | C65: =SUM(C63:C64) -> 5016630.92 | D65: =SUM(D63:D64) -> 2 | E65: =SUM(E63:E64) -> 4869704 | F65: =SUM(F63:F64) -> 146926.92 | G65: =SUM(G63:G64) -> 0
A66: Муниципальное образование Отрадненское городское поселение
A67: =A64+1 -> 31 | B67: Г. Отрадное, ул. Железнодорожная, д. 13 | C67: =E67+F67+G67 -> 5016630.92 | D67: 2 | E67: =2434852*D67 -> 4869704 | F67: =D67*73463.46 -> 146926.92
A68: =A67+1 -> 32 | B68: Г. Отрадное, ул. Зарубина, д. 15 | C68: =E68+F68+G68 -> 2508315.46 | D68: 1 | E68: =2434852*D68 -> 2434852 | F68: =D68*73463.46 -> 73463.46
A69: =A68+1 -> 33 | B69: Г. Отрадное, ул. Лесная, д. 10 | C69: =E69+F69+G69 -> 2508315.46 | D69: 1 | E69: =2434852*D69 -> 2434852 | F69: =D69*73463.46 -> 73463.46
A70: =A69+1 -> 34 | B70: Г. Отрадное, ул. Центральная,д.17 | C70: =E70+F70+G70 -> 10033261.84 | D70: 4 | E70: =2434852*D70 -> 9739408 | F70: =D70*73463.46 -> 293853.84
A71: =A70+1 -> 35 | B71: Г. Отрадное, ул. Щурова, д.4 | C71: =E71+F71+G71 -> 5016630.92 | D71: 2 | E71: =2434852*D71 -> 4869704 | F71: =D71*73463.46 -> 146926.92
A72: Итого по муниципальному образованию | C72: =SUM(C67:C71) -> 25083154.6 | D72: =SUM(D67:D71) -> 10 | E72: =SUM(E67:E71) -> 24348520 | F72: =SUM(F67:F71) -> 734634.6
A73: Итого по Кировскому муниципальному району | C73: =+C72+C65 -> 30099785.52 | D73: =+D72+D65 -> 12 | E73: =+E72+E65 -> 29218224 | F73: =+F72+F65 -> 881561.52 | G73: =+G72+G65 -> 0
A74: Ломоносовский муниципальный район
A75: Муниципальное образование Аннинское сельское поселение
A76: =A71+1 -> 36 | B76: Г.п. Новоселье, д. 7 | C76: =E76+F76+G76 -> 520000 | G76: =4*130000 -> 520000
A77: Итого по муниципальному образованию | C77: =SUM(C76) -> 520000 | G77: =SUM(G76) -> 520000
A78: Итого по Ломоносовскому муниципальному району | C78: =C77 -> 520000 | G78: =G77 -> 520000
A79: Лужский муниципальный район
A80: Муниципальное образование Лужское городское поселение
A81: =A76+1 -> 37 | B81: Г. Луга, просп. Урицкого, д. 101 | C81: =E81+F81+G81 -> 2508315.46 | D81: 1 | E81: =2434852*D81 -> 2434852 | F81: =D81*73463.46 -> 73463.46
A82: =A81+1 -> 38 | B82: Г. Луга, просп. Урицкого, д. 99 | C82: =E82+F82+G82 -> 2508315.46 | D82: 1 | E82: =2434852*D82 -> 2434852 | F82: =D82*73463.46 -> 73463.46
A83: Итого по муниципальному образованию | C83: =SUM(C81:C82) -> 5016630.92 | D83: =SUM(D81:D82) -> 2 | E83: =SUM(E81:E82) -> 4869704 | F83: =SUM(F81:F82) -> 146926.92
A84: Итого по Лужскому муниципальному району | C84: =SUM(C83) -> 5016630.92 | D84: =SUM(D83) -> 2 | E84: =SUM(E83) -> 4869704 | F84: =SUM(F83) -> 146926.92
A85: Сосновоборский городской округ
A86: Муниципальное образование Сосновоборский городской округ
A87: =A82+1 -> 39 | B87: Г. Сосновый Бор, ул. Ленинградская, д. 38 | C87: =E87+F87+G88 -> 130000 | G87: 130000
A88: =A87+1 -> 40 | B88: Г. Сосновый Бор, ул. Парковая, д. 70 | C88: =E88+F88+G88 -> 130000 | G88: 130000
A89: Итого по муниципальному образованию | C89: =SUM(C87:C88) -> 260000 | G89: =SUM(G87:G88) -> 260000
A90: Тихвинский муниципальный район
A91: Муниципальное образование Тихвинское городское поселение
A92: =A88+1 -> 41 | B92: Г. Тихвин, ул. Машиностроителей, д.46 | C92: =E92+F92+G92 -> 12541577.3 | D92: 5 | E92: =2434852*D92 -> 12174260 | F92: =D92*73463.46 -> 367317.3
A93: Итого по муниципальному образованию | C93: =SUM(C92) -> 12541577.3 | D93: =SUM(D92) -> 5 | E93: =SUM(E92) -> 12174260 | F93: =SUM(F92) -> 367317.3
A94: Итого по Тихвинскому муниципальному району | C94: =C93 -> 12541577.3 | D94: =D93 -> 5 | E94: =E93 -> 12174260 | F94: =F93 -> 367317.3
A95: Тосненский район
A96: Муниципальное образование Тосненское городское поселение
A97: =A92+1 -> 42 | B97: Г. Тосно, ул. М. Горького, д. 8а | C97: =E97+F97+G97 -> 5016630.92 | D97: 2 | E97: =2434852*D97 -> 4869704 | F97: =D97*73463.46 -> 146926.92
A98: =A97+1 -> 43 | B98: Г. Тосно, пр. Ленина, д. 19 | C98: =E98+F98+G98 -> 10033261.84 | D98: 4 | E98: =2434852*D98 -> 9739408 | F98: =D98*73463.46 -> 293853.84
A99: Итого по муниципальному образованию | C99: =SUM(C97:C98) -> 15049892.76 | D99: =SUM(D97:D98) -> 6 | E99: =SUM(E97:E98) -> 14609112 | F99: =SUM(F97:F98) -> 440780.76
A100: Итого по Тосненскому району | C100: =C99 -> 15049892.76 | D100: =D99 -> 6 | E100: =E99 -> 14609112 | F100: =F99 -> 440780.76
A101: ИТОГО по Ленинградской области | C101: =C9+C31+C41+C50+C60+C73+C78+C84+C89+C94+C100 -> 154982998.3 | D101: 60 | E101: 146341563 | F101: 4351435.26 | G101: =G9+G31+G41+G50+G60+G73+G78+G84+G89+G94+G100 -> 4290000
A102: Осуществление строительного контроля | C102: =(C101-F101-G101)*0.0214 -> 3131709.448
A103: Итого по Ленинградской области со строительным контролем | C103: =C101+C102 -> 158114707.7
G399: =SUM(G375:G398) -> 0
G416: =SUM(G401:G415) -> 0
G423: =SUM(G418:G422) -> 0
G426: =SUM(G425:G425) -> 0
G434: =SUM(G428:G433) -> 0
G442: =SUM(G436:G441) -> 0
G443: =#REF!+#REF!+#REF!+#REF!+#REF!+F443+#REF!+#REF!+#REF!+#REF!+#REF!+#REF!+#REF!+#REF! -> 
G444: =#REF!+#REF!+#REF!+#REF!+#REF!+F444+#REF!+#REF!+#REF!+#REF!+#REF!+#REF!+#REF!+#REF! -> 
G445: =#REF!+#REF!+#REF!+#REF!+#REF!+F445+#REF!+#REF!+#REF!+#REF!+#REF!+#REF!+#REF!+#REF! -> 
G446: =#REF!+#REF!+#REF!+#REF!+#REF!+F446+#REF!+#REF!+#REF!+#REF!+#REF!+#REF!+#REF!+#REF! -> 
G447: =#REF!+#REF!+#REF!+#REF!+#REF!+F447+#REF!+#REF!+#REF!+#REF!+#REF!+#REF!+#REF!+#REF! -> 
G473: =SUM(G449:G472) -> 0
G474: =SUM(G473+G442+G434+G426+G423+G416+G399) -> 0
G510: =SUM(G477:G509) -> 0
G511: =G510 -> 0
G520: =SUM(G514:G517) -> 0
G523: =SUM(G522:G522) -> 0
G528: =SUM(G525:G527) -> 0
G534: =SUM(G530:G533) -> 0
G540: =SUM(G536:G539) -> 0
G544: =SUM(G542:G543) -> 0
G550: =SUM(G546:G549) -> 0
G551: =G528+G520+G523+G550+G544+G534+G540 -> 0
G556: =SUM(G554:G555) -> 0
G579: =SUM(G570:G578) -> 0
G583: =SUM(G581:G582) -> 0
G586: =SUM(G585:G585) -> 0
G595: =SUM(G588:G594) -> 0
G603: =SUM(G597:G602) -> 0
G606: =SUM(G605:G605) -> 0
G609: =SUM(G608) -> 0
G616: =G556+G579+G583+G586+G595+G603+G606+G609+G615 -> 0
G627: =SUM(G619:G626) -> 0
G628: =G627 -> 0
G636: =SUM(G631:G635) -> 0
G642: =SUM(G638:G641) -> 0
G647: =SUM(G644:G646) -> 0
G653: =SUM(G649:G652) -> 0
G657: =SUM(G655:G656) -> 0
G665: =G663+G664 -> 0
G666: =G636+G642+G647+G653+G657 -> 0
G670: =SUM(G669:G669) -> 0
G673: =SUM(G672) -> 0
G711: =SUM(G675:G710) -> 0
G712: =G711+G673+G670 -> 0
G833: =SUM(G714:G832) -> 0
G945: =SUM(G841:G944) -> 0
G965: =SUM(G947:G964) -> 0
G966: =G945+G965 -> 0
G970: =SUM(G969:G969) -> 0
G978: =SUM(G972:G977) -> 0
G981: =SUM(G980:G980) -> 0
G1001: =SUM(G983:G1000) -> 0
G1004: =SUM(G1003:G1003) -> 0
G1007: =SUM(G1006) -> 0
G1008: =G978+G981+G1004+G1001+G970+G1007 -> 0

Sheet 2022 Раздел 4
A1: Раздел IV. Перечень многоквартирных домов, в которых будет проводиться капитальный ремонт лифтового оборудования в 2022 году, за счет средств собственников, формирующих фонд капитального ремонта на счетах регионального оператора
A2: № п\п | B2: Адрес МКД | C2: Стоимость капитального ремонта ВСЕГО | D2: Ремонт или замена лифтового оборудования | F2: ТО | G2: Проектные работы
C3: руб. | D3: ед. | E3: руб | F3: руб. | G3: руб.
A4: 1 | B4: 2 | C4: 3 | D4: 4 | E4: 5 | F4: 6 | G4: 7
A6: Волховский муниципальный район
A7: Муниципальное образование Город Волхов
A8: 1 | B8: Г. Волхов, просп. Волховский, д. 57 | C8: =E8+F8+G8 -> 2605709.46 | D8: 1 | E8: =2532246*D8 -> 2532246 | F8: =73463.46*D8 -> 73463.46
A9: Итого по муниципальному образованию | C9: =SUM(C8:C8) -> 2605709.46 | D9: =SUM(D8:D8) -> 1 | E9: =2532246*D9 -> 2532246 | F9: =73463.46*D9 -> 73463.46 | G9: =SUM(G8:G8) -> 0
A10: Итого по Волховскому муниципальному району | C10: =C9 -> 2605709.46 | D10: =D9 -> 1 | E10: =E9 -> 2532246 | F10: =F9 -> 73463.46 | G10: =G9 -> 0
A11: Всеволожский муниципальный район
A12: Муниципальное образование Город Всеволожск
A13: =A8+1 -> 2 | B13: Г. Всеволожск, ул. Василеозерская, д. 7 | C13: =E13+F13+G13 -> 5211418.92 | D13: 2 | E13: =2532246*D13 -> 5064492 | F13: =73463.46*D13 -> 146926.92
A14: =A13+1 -> 3 | B14: Г. Всеволожск, ул. Ленинградская, д. 30, корп. 1 | C14: =E14+F14+G14 -> 2605709.46 | D14: 1 | E14: =2532246*D14 -> 2532246 | F14: =73463.46*D14 -> 73463.46
A15: Итого по муниципальному образованию | C15: =SUM(C13:C14) -> 7817128.38 | D15: =SUM(D13:D14) -> 3 | E15: =SUM(E13:E14) -> 7596738 | F15: =SUM(F13:F14) -> 220390.38 | G15: =SUM(G13:G14) -> 0
A16: Муниципальное образование Сертолово
A17: =A14+1 -> 4 | B17: г.Сертолово, микрорайон Сертолово-1, ул.Ветеранов,д.11,корп.1 | C17: =E17+F17+G17 -> 7907242.86 | D17: 3 | E17: 7304556 | F17: 212686.86 | G17: =130000*D17 -> 390000
A18: Итого по муниципальному образованию | C18: =SUM(C17) -> 7907242.86 | D18: =SUM(D17) -> 3 | E18: =SUM(E17) -> 7304556 | F18: =SUM(F17) -> 212686.86 | G18: =SUM(G17) -> 390000
A19: Итого по Всеволожскому муниципальному району | C19: =C15+C18 -> 15724371.24 | D19: =D15+D18 -> 6 | E19: =E15+E18 -> 14901294 | F19: =F15+F18 -> 433077.24 | G19: 390000
A20: Выборгский район
A21: Муниципальное образование Город Выборг
A22: =A17+1 -> 5 | B22: Г. Выборг, ул. Гагарина, д. 69 | C22: =E22+F22+G22 -> 5211418.92 | D22: 2 | E22: =2532246*D22 -> 5064492 | F22: =73463.46*D22 -> 146926.92
A23: Итого по муниципальному образованию | C23: =SUM(C22:C22) -> 5211418.92 | D23: =SUM(D22:D22) -> 2 | E23: =SUM(E22:E22) -> 5064492 | F23: =SUM(F22:F22) -> 146926.92 | G23: =SUM(G22:G22) -> 0
A24: Муниципальное образование Полянское сельское поселение
A25: =A22+1 -> 6 | B25: пос. Каменка, ул. Гвардейская, д. 75 | C25: =E25+F25+G25 -> 2606190.13 | D25: 1 | E25: 2532246 | F25: 73944.13
A26: =A25+1 -> 7 | B26: пос. Каменка, ул. Гвардейская, д. 77 | C26: =E26+F26+G26 -> 2606190.13 | D26: 1 | E26: 2532246 | F26: 73944.13
A27: Итого по муниципальному образованию | C27: =SUM(C25:C26) -> 5212380.26 | D27: =SUM(D25:D26) -> 2 | E27: =SUM(E25:E26) -> 5064492 | F27: =SUM(F25:F26) -> 147888.26 | G27: =SUM(G25:G26) -> 0
A28: Итого по Выборгскому району | C28: =C23+C27 -> 10423799.18 | D28: =D23+D27 -> 4 | E28: =E23+E27 -> 10128984 | F28: =F23+F27 -> 294815.18 | G28: =G23+G27 -> 0
A29: Гатчинский муниципальный район
A30: Муниципальное образование Город Гатчина
A31: =A26+1 -> 8 | B31: Г. Гатчина, просп. 25 Октября, д. 59 | C31: =E31+F31+G31 -> 7817128.38 | D31: 3 | E31: =2532246*D31 -> 7596738 | F31: 220390.38
A32: =A31+1 -> 9 | B32: Г. Гатчина, ул. Рощинская, д. 11, кор. 1 | C32: =E32+F32+G32 -> 2605709.46 | D32: 1 | E32: =2532246*D32 -> 2532246 | F32: 73463.46
A33: =A32+1 -> 10 | B33: Г. Гатчина, ул. Рощинская, д. 13А | C33: =E33+F33+G33 -> 5211418.92 | D33: 2 | E33: =2532246*D33 -> 5064492 | F33: 146926.92
A34: 11 | B34: Г. Гатчина, ул. Рощинская, д. 3А | C34: =E34+F34+G34 -> 5211418.92 | D34: 2 | E34: =2532246*D34 -> 5064492 | F34: 146926.92
A35: Итого по муниципальному образованию | C35: =SUM(C31:C34) -> 20845675.68 | D35: =SUM(D31:D34) -> 8 | E35: =SUM(E31:E34) -> 20257968 | F35: =SUM(F31:F34) -> 587707.68 | G35: =SUM(G31:G34) -> 0
A36: Итого по Гатчинскому муниципальному району | C36: =C35 -> 20845675.68 | D36: =D35 -> 8 | E36: =E35 -> 20257968 | F36: =F35 -> 587707.68 | G36: =G35 -> 0
A37: Киришский муниципальный район
A38: Муниципальное образование Киришское городское поселение
A39: =A34+1 -> 12 | B39: Г. Кириши, бул. Плавницкий, д. 36 | C39: =E39+F39+G39 -> 2605709.46 | D39: 1 | E39: =2532246*D39 -> 2532246 | F39: =73463.46*D39 -> 73463.46
A40: =A39+1 -> 13 | B40: Г. Кириши, просп. Ленина, д. 40 | C40: 2605709.46 | D40: 1 | E40: =2532246*D40 -> 2532246 | F40: =73463.46*D40 -> 73463.46
A41: =A40+1 -> 14 | B41: Г. Кириши, просп. Ленина, д. 9 | C41: 2605709.46 | D41: 1 | E41: =2532246*D41 -> 2532246 | F41: =73463.46*D41 -> 73463.46
A42: =A41+1 -> 15 | B42: Г. Кириши, ул. Строителей, д. 2 | C42: 2605709.46 | D42: 1 | E42: =2532246*D42 -> 2532246 | F42: =73463.46*D42 -> 73463.46
A43: =A42+1 -> 16 | B43: Г. Кириши, ул. Строителей, д. 26 | C43: 2605709.46 | D43: 1 | E43: =2532246*D43 -> 2532246 | F43: =73463.46*D43 -> 73463.46
A44: =A43+1 -> 17 | B44: Г. Кириши, ул. Строителей, д. 30А | C44: 2736190.13 | D44: 1 | E44: 2532246 | F44: 73944.13 | G44: 130000
A45: Итого по муниципальному образованию | C45: =SUM(C39:C44) -> 15764737.43 | D45: =SUM(D39:D44) -> 6 | E45: =SUM(E39:E44) -> 15193476 | F45: =SUM(F39:F44) -> 441261.43 | G45: =SUM(G39:G44) -> 130000
A46: Итого по Киришскому муниципальному району | C46: =C45 -> 15764737.43 | D46: =D45 -> 6 | E46: =E45 -> 15193476 | F46: =F45 -> 441261.43 | G46: =G45 -> 130000
A47: Кировский муниципальный район
A48: Муниципальное образование Отрадненское городское поселение
A49: =A44+1 -> 18 | B49: Г. Отрадное, ул. Гагарина, д. 16 | C49: =E49+F49+G49 -> 5473380.26 | D49: 2 | E49: 5065492 | F49: 147888.26 | G49: 260000
A50: Итого по муниципальному образованию | C50: =C49 -> 5473380.26 | D50: =D49 -> 2 | E50: 5065492 | F50: 147888.26 | G50: 260000
A51: Итого по Кировскому муниципальному району | C51: =C50 -> 5473380.26 | D51: =D50 -> 2 | E51: 5065492 | F51: 147888.26 | G51: 260000
A52: Ломоносовский муниципальный район
A53: Муниципальное образование Аннинское сельское поселение
A54: =A49+1 -> 19 | B54: Г.п. Новоселье, д. 7 | C54: =E54+F54+G54 -> 10422837.84 | D54: 4 | E54: =2532246*D54 -> 10128984 | F54: =73463.46*D54 -> 293853.84
A55: Итого по муниципальному образованию | C55: =SUM(C54) -> 10422837.84 | D55: =SUM(D54) -> 4 | E55: =SUM(E54) -> 10128984 | F55: =SUM(F54) -> 293853.84 | G55: =SUM(G54) -> 0
A56: Итого по Ломоносовскому муниципальному району | C56: =C55 -> 10422837.84 | D56: =D55 -> 4 | E56: =E55 -> 10128984 | F56: =F55 -> 293853.84 | G56: =G55 -> 0
A57: Лужский муниципальный район
A58: Муниципальное образование Лужское городское поселение
A59: =A54+1 -> 20 | B59: Г. Луга, ул. Миккели, д. 1, кор. 2 | C59: =E59+F59+G59 -> 2736190.13 | D59: 1 | E59: 2532246 | F59: 73944.13 | G59: 130000
A60: Итого по муниципальному образованию | C60: =C59 -> 2736190.13 | D60: =D59 -> 1 | E60: 2532246 | F60: 73944.13 | G60: 130000
A61: Сосновоборский городской округ
A62: Муниципальное образование Сосновоборский городской округ
A63: =A59+1 -> 21 | B63: Г. Сосновый Бор, ул. Ленинградская, д. 38 | C63: =E63+F63+G63 -> 2605709.46 | D63: 1 | E63: =2532246*D63 -> 2532246 | F63: =73463.46*D63 -> 73463.46
A64: =A63+1 -> 22 | B64: Г. Сосновый Бор, ул. Парковая, д. 70 | C64: 2605709.46 | D64: 1 | E64: =2532246*D64 -> 2532246 | F64: =73463.46*D64 -> 73463.46
A65: Итого по муниципальному образованию | C65: =SUM(C63:C64) -> 5211418.92 | D65: =SUM(D63:D64) -> 2 | E65: =SUM(E63:E64) -> 5064492 | F65: =SUM(F63:F64) -> 146926.92 | G65: =SUM(G63:G64) -> 0
A67: Муниципальное образование Тосненское городское поселение
A68: =A64+1 -> 23 | B68: Г. Тосно, ул. Блинникова, д. 8 | C68: =E68+F68+G68 -> 14136755.1 | D68: 5 | E68: 13095335 | F68: 391420.1 | G68: 650000
A69: =A68+1 -> 24 | B69: Г. Тосно, пр. Ленина, д. 69 | C69: 6019345.6 | D69: 2 | E69: 5585418 | F69: 173927.6 | G69: 260000
A70: Итого по муниципальному образованию | C70: =C68+C69 -> 20156100.7 | D70: =D68+D69 -> 7 | E70: 18680753 | F70: 565347.7 | G70: 910000
A71: ИТОГО по Ленинградской области | C71: =C10+C19+C28+C36+C46+C51+C56+C60+C65+C70 -> 109364220.8 | D71: =D10+D19+D28+D36+D46+D51+D56+D60+D65+D70 -> 41 | E71: 104485935 | F71: 3058285.84 | G71: 1820000
A72: Осуществление строительного контроля | C72: =(C71-F71-G71)*0.0214 -> 2235999.009
A73: Итого по Ленинградской области со строительным контролем | C73: =C71+C72 -> 111600219.8
G147: =SUM(G134:G146) -> 0
G170: =SUM(G152:G169) -> 0
G181: =SUM(G175:G180) -> 0
G189: =SUM(G183:G188) -> 0
G195: =SUM(G191:G193) -> 0
G196: =G147+G170+G181+G195+G189+G173 -> 0
G203: =SUM(G199:G202) -> 0
G267: =SUM(G208:G266) -> 0
G274: =SUM(G273) -> 0
G281: =G203+G267+G274 -> 0
G296: =SUM(G284:G295) -> 0
G301: =SUM(G298:G300) -> 0
G302: =G296+G301 -> 0
G332: =SUM(G305:G331) -> 0
G337: =SUM(G334:G336) -> 0
G341: =SUM(G339:G340) -> 0
G342: =G332+G341+G337 -> 0
G369: =SUM(G345:G368) -> 0
G386: =SUM(G371:G385) -> 0
G393: =SUM(G388:G392) -> 0
G396: =SUM(G395:G395) -> 0
G404: =SUM(G398:G403) -> 0
G412: =SUM(G406:G411) -> 0
G413: =#REF!+#REF!+#REF!+#REF!+#REF!+F413+#REF!+#REF!+#REF!+#REF!+#REF!+#REF!+#REF!+#REF! -> 
G414: =#REF!+#REF!+#REF!+#REF!+#REF!+F414+#REF!+#REF!+#REF!+#REF!+#REF!+#REF!+#REF!+#REF! -> 
G415: =#REF!+#REF!+#REF!+#REF!+#REF!+F415+#REF!+#REF!+#REF!+#REF!+#REF!+#REF!+#REF!+#REF! -> 
G416: =#REF!+#REF!+#REF!+#REF!+#REF!+F416+#REF!+#REF!+#REF!+#REF!+#REF!+#REF!+#REF!+#REF! -> 
G417: =#REF!+#REF!+#REF!+#REF!+#REF!+F417+#REF!+#REF!+#REF!+#REF!+#REF!+#REF!+#REF!+#REF! -> 
G443: =SUM(G419:G442) -> 0
G444: =SUM(G443+G412+G404+G396+G393+G386+G369) -> 0
G480: =SUM(G447:G479) -> 0
G481: =G480 -> 0
G490: =SUM(G484:G487) -> 0
G493: =SUM(G492:G492) -> 0
G498: =SUM(G495:G497) -> 0
G504: =SUM(G500:G503) -> 0
G510: =SUM(G506:G509) -> 0
G514: =SUM(G512:G513) -> 0
G520: =SUM(G516:G519) -> 0
G521: =G498+G490+G493+G520+G514+G504+G510 -> 0
G526: =SUM(G524:G525) -> 0
G549: =SUM(G540:G548) -> 0
G553: =SUM(G551:G552) -> 0
G556: =SUM(G555:G555) -> 0
G565: =SUM(G558:G564) -> 0
G573: =SUM(G567:G572) -> 0
G576: =SUM(G575:G575) -> 0
G579: =SUM(G578) -> 0
G586: =G526+G549+G553+G556+G565+G573+G576+G579+G585 -> 0
G597: =SUM(G589:G596) -> 0
G598: =G597 -> 0
G606: =SUM(G601:G605) -> 0
G612: =SUM(G608:G611) -> 0
G617: =SUM(G614:G616) -> 0
G623: =SUM(G619:G622) -> 0
G627: =SUM(G625:G626) -> 0
G635: =G633+G634 -> 0
G636: =G606+G612+G617+G623+G627 -> 0
G640: =SUM(G639:G639) -> 0
G643: =SUM(G642) -> 0
G681: =SUM(G645:G680) -> 0
G682: =G681+G643+G640 -> 0
G803: =SUM(G684:G802) -> 0
G915: =SUM(G811:G914) -> 0
G935: =SUM(G917:G934) -> 0
G936: =G915+G935 -> 0
G940: =SUM(G939:G939) -> 0
G948: =SUM(G942:G947) -> 0
G951: =SUM(G950:G950) -> 0
G971: =SUM(G953:G970) -> 0
G974: =SUM(G973:G973) -> 0
G977: =SUM(G976) -> 0
G978: =G948+G951+G974+G971+G940+G977 -> 0
